Workbook

Sheet StaKa M 4 S.
A1: Mannschaft: | N1: 1 | P1: 12 | Q1: Auf Druckeinstellung achten!
A2: Verein: | Q2: Ob eine oder 2 Seiten je Blatt!
A3: Adresse:
A4: Name, Vorname | F4: 1. Serie | H4: 2. Serie: | J4: 3. Serie: | L4: 4. Serie: | N4: Gesamt:
A10: Spielpunkte:
A12: Gesamtpunkte:
A15: Mannschaft: | N15: =N1+P1 -> 13
A16: Verein:
A17: Adresse:
A18: Name, Vorname | F18: 1. Serie | H18: 2. Serie: | J18: 3. Serie: | L18: 4. Serie: | N18: Gesamt:
A24: Spielpunkte:
A26: Gesamtpunkte:
A27: Mannschaft: | N27: =N1+1 -> 2
A28: Verein:
A29: Adresse:
A30: Name, Vorname | F30: 1. Serie | H30: 2. Serie: | J30: 3. Serie: | L30: 4. Serie: | N30: Gesamt:
A36: Spielpunkte:
A38: Gesamtpunkte:
A41: Mannschaft: | N41: =N27+P1 -> 14
A42: Verein:
A43: Adresse:
A44: Name, Vorname | F44: 1. Serie | H44: 2. Serie: | J44: 3. Serie: | L44: 4. Serie: | N44: Gesamt:
A50: Spielpunkte:
A52: Gesamtpunkte:
A53: Mannschaft: | N53: =N27+1 -> 3
A54: Verein:
A55: Adresse:
A56: Name, Vorname | F56: 1. Serie | H56: 2. Serie: | J56: 3. Serie: | L56: 4. Serie: | N56: Gesamt:
A62: Spielpunkte:
A64: Gesamtpunkte:
A67: Mannschaft: | N67: =N53+P1 -> 15
A68: Verein:
A69: Adresse:
A70: Name, Vorname | F70: 1. Serie | H70: 2. Serie: | J70: 3. Serie: | L70: 4. Serie: | N70: Gesamt:
A76: Spielpunkte:
A78: Gesamtpunkte:
A79: Mannschaft: | N79: =N53+1 -> 4
A80: Verein:
A81: Adresse:
A82: Name, Vorname | F82: 1. Serie | H82: 2. Serie: | J82: 3. Serie: | L82: 4. Serie: | N82: Gesamt:
A88: Spielpunkte:
A90: Gesamtpunkte:
A93: Mannschaft: | N93: =N79+P1 -> 16
A94: Verein:
A95: Adresse:
A96: Name, Vorname | F96: 1. Serie | H96: 2. Serie: | J96: 3. Serie: | L96: 4. Serie: | N96: Gesamt:
A102: Spielpunkte:
A104: Gesamtpunkte:
A105: Mannschaft: | N105: =N79+1 -> 5
A106: Verein:
A107: Adresse:
A108: Name, Vorname | F108: 1. Serie | H108: 2. Serie: | J108: 3. Serie: | L108: 4. Serie: | N108: Gesamt:
A114: Spielpunkte:
A116: Gesamtpunkte:
A119: Mannschaft: | N119: =N105+P1 -> 17
A120: Verein:
A121: Adresse:
A122: Name, Vorname | F122: 1. Serie | H122: 2. Serie: | J122: 3. Serie: | L122: 4. Serie: | N122: Gesamt:
A128: Spielpunkte:
A130: Gesamtpunkte:
A131: Mannschaft: | N131: =N105+1 -> 6
A132: Verein:
A133: Adresse:
A134: Name, Vorname | F134: 1. Serie | H134: 2. Serie: | J134: 3. Serie: | L134: 4. Serie: | N134: Gesamt:
A140: Spielpunkte:
A142: Gesamtpunkte:
A145: Mannschaft: | N145: =N131+P1 -> 18
A146: Verein:
A147: Adresse:
A148: Name, Vorname | F148: 1. Serie | H148: 2. Serie: | J148: 3. Serie: | L148: 4. Serie: | N148: Gesamt:
A154: Spielpunkte:
A156: Gesamtpunkte:
A157: Mannschaft: | N157: =N131+1 -> 7
A158: Verein:
A159: Adresse:
A160: Name, Vorname | F160: 1. Serie | H160: 2. Serie: | J160: 3. Serie: | L160: 4. Serie: | N160: Gesamt:
A166: Spielpunkte:
A168: Gesamtpunkte:
A171: Mannschaft: | N171: =N157+P1 -> 19
A172: Verein:
A173: Adresse:
A174: Name, Vorname | F174: Passnummer: | H174: 2. Serie: | J174: 3. Serie: | L174: 4. Serie: | N174: Gesamt:
A180: Spielpunkte:
A182: Gesamtpunkte:
A183: Mannschaft: | N183: =N157+1 -> 8
A184: Verein:
A185: Adresse:
A186: Name, Vorname | F186: 1. Serie | H186: 2. Serie: | J186: 3. Serie: | L186: 4. Serie: | N186: Gesamt:
A192: Spielpunkte:
A194: Gesamtpunkte:
A197: Mannschaft: | N197: =N183+P1 -> 20
A198: Verein:
A199: Adresse:
A200: Name, Vorname | F200: 1. Serie | H200: 2. Serie: | J200: 3. Serie: | L200: 4. Serie: | N200: Gesamt:
A206: Spielpunkte:
A208: Gesamtpunkte:
A209: Mannschaft: | N209: =N183+1 -> 9
A210: Verein:
A211: Adresse:
A212: Name, Vorname | F212: 1. Serie | H212: 2. Serie: | J212: 3. Serie: | L212: 4. Serie: | N212: Gesamt:
A218: Spielpunkte:
A220: Gesamtpunkte:
A223: Mannschaft: | N223: =N209+P1 -> 21
A224: Verein:
A225: Adresse:
A226: Name, Vorname | F226: 1. Serie | H226: 2. Serie: | J226: 3. Serie: | L226: 4. Serie: | N226: Gesamt:
A232: Spielpunkte:
A234: Gesamtpunkte:
A235: Mannschaft: | N235: =N209+1 -> 10
A236: Verein:
A237: Adresse:
A238: Name, Vorname | F238: 1. Serie | H238: 2. Serie: | J238: 3. Serie: | L238: 4. Serie: | N238: Gesamt:
A244: Spielpunkte:
A246: Gesamtpunkte:
A249: Mannschaft: | N249: =N235+P1 -> 22
A250: Verein:
A251: Adresse:
A252: Name, Vorname | F252: 1. Serie | H252: 2. Serie: | J252: 3. Serie: | L252: 4. Serie: | N252: Gesamt:
A258: Spielpunkte:
A260: Gesamtpunkte:
A261: Mannschaft: | N261: =N235+1 -> 11
A262: Verein:
A263: Adresse:
A264: Name, Vorname | F264: Passnummer: | H264: 2. Serie: | J264: 3. Serie: | L264: 4. Serie: | N264: Gesamt:
A270: Spielpunkte:
A272: Gesamtpunkte:
A275: Mannschaft: | N275: =N261+P1 -> 23
A276: Verein:
A277: Adresse:
A278: Name, Vorname | F278: 1. Serie | H278: 2. Serie: | J278: 3. Serie: | L278: 4. Serie: | N278: Gesamt:
A284: Spielpunkte:
A286: Gesamtpunkte:
A287: Mannschaft: | N287: =N261+1 -> 12
A288: Verein:
A289: Adresse:
A290: Name, Vorname | F290: 1. Serie | H290: 2. Serie: | J290: 3. Serie: | L290: 4. Serie: | N290: Gesamt:
A296: Spielpunkte:
A298: Gesamtpunkte:
A301: Mannschaft: | N301: =N287+P1 -> 24
A302: Verein:
A303: Adresse:
A304: Name, Vorname | F304: 1. Serie | H304: 2. Serie: | J304: 3. Serie: | L304: 4. Serie: | N304: Gesamt:
A310: Spielpunkte:
A312: Gesamtpunkte:

Sheet StaKa E.. 4 S.
A1: Veranstaltung | C1: Datum | G1: =$A$1 -> Veranstaltung | I1: =$C$1 -> Datum | L1: Auf Druckeinstellung achten!
A2: Start-Nr. : | B2: Name : | G2: Start-Nr. : | H2: Name : | L2: Ob eine oder 2 Seiten je Blatt!
A3: 1 | G3: =A3+1 -> 2
A4: SERIE : | B4: PUNKTE : | C4: SUMME : | D4: OK : | G4: SERIE : | H4: PUNKTE : | I4: SUMME : | J4: OK :
A5: 1 | G5: 1
A6: 2 | G6: 2
A7: 3 | G7: 3
A8: 4 | G8: 4
A9: SUMME : | G9: SUMME :
A12: =$A$1 -> Veranstaltung | C12: =$C$1 -> Datum | G12: =$A$1 -> Veranstaltung | I12: =$C$1 -> Datum
A13: Start-Nr. : | B13: Name : | G13: Start-Nr. : | H13: Name :
A14: =A3+2 -> 3 | G14: =A14+1 -> 4
A15: SERIE : | B15: PUNKTE : | C15: SUMME : | D15: OK : | G15: SERIE : | H15: PUNKTE : | I15: SUMME : | J15: OK :
A16: 1 | G16: 1
A17: 2 | G17: 2
A18: 3 | G18: 3
A19: 4 | G19: 4
A20: SUMME : | G20: SUMME :
A21: =$A$1 -> Veranstaltung | C21: =$C$1 -> Datum | G21: =$A$1 -> Veranstaltung | I21: =$C$1 -> Datum
A22: Start-Nr. : | B22: Name : | G22: Start-Nr. : | H22: Name :
A23: =A14+2 -> 5 | G23: =A23+1 -> 6
A24: SERIE : | B24: PUNKTE : | C24: SUMME : | D24: OK : | G24: SERIE : | H24: PUNKTE : | I24: SUMME : | J24: OK :
A25: 1 | G25: 1
A26: 2 | G26: 2
A27: 3 | G27: 3
A28: 4 | G28: 4
A29: SUMME : | G29: SUMME :
A32: =$A$1 -> Veranstaltung | C32: =$C$1 -> Datum | G32: =$A$1 -> Veranstaltung | I32: =$C$1 -> Datum
A33: Start-Nr. : | B33: Name : | G33: Start-Nr. : | H33: Name :
A34: =A23+2 -> 7 | G34: =A34+1 -> 8
A35: SERIE : | B35: PUNKTE : | C35: SUMME : | D35: OK : | G35: SERIE : | H35: PUNKTE : | I35: SUMME : | J35: OK :
A36: 1 | G36: 1
A37: 2 | G37: 2
A38: 3 | G38: 3
A39: 4 | G39: 4
A40: SUMME : | G40: SUMME :
A41: =$A$1 -> Veranstaltung | C41: =$C$1 -> Datum | G41: =$A$1 -> Veranstaltung | I41: =$C$1 -> Datum
A42: Start-Nr. : | B42: Name : | G42: Start-Nr. : | H42: Name :
A43: =A34+2 -> 9 | G43: =A43+1 -> 10
A44: SERIE : | B44: PUNKTE : | C44: SUMME : | D44: OK : | G44: SERIE : | H44: PUNKTE : | I44: SUMME : | J44: OK :
A45: 1 | G45: 1
A46: 2 | G46: 2
A47: 3 | G47: 3
A48: 4 | G48: 4
A49: SUMME : | G49: SUMME :
A52: =$A$1 -> Veranstaltung | C52: =$C$1 -> Datum | G52: =$A$1 -> Veranstaltung | I52: =$C$1 -> Datum
A53: Start-Nr. : | B53: Name : | G53: Start-Nr. : | H53: Name :
A54: =A43+2 -> 11 | G54: =A54+1 -> 12
A55: SERIE : | B55: PUNKTE : | C55: SUMME : | D55: OK : | G55: SERIE : | H55: PUNKTE : | I55: SUMME : | J55: OK :
A56: 1 | G56: 1
A57: 2 | G57: 2
A58: 3 | G58: 3
A59: 4 | G59: 4
A60: SUMME : | G60: SUMME :
A61: =$A$1 -> Veranstaltung | C61: =$C$1 -> Datum | G61: =$A$1 -> Veranstaltung | I61: =$C$1 -> Datum
A62: Start-Nr. : | B62: Name : | G62: Start-Nr. : | H62: Name :
A63: =A54+2 -> 13 | G63: =A63+1 -> 14
A64: SERIE : | B64: PUNKTE : | C64: SUMME : | D64: OK : | G64: SERIE : | H64: PUNKTE : | I64: SUMME : | J64: OK :
A65: 1 | G65: 1
A66: 2 | G66: 2
A67: 3 | G67: 3
A68: 4 | G68: 4
A69: SUMME : | G69: SUMME :
A72: =$A$1 -> Veranstaltung | C72: =$C$1 -> Datum | G72: =$A$1 -> Veranstaltung | I72: =$C$1 -> Datum
A73: Start-Nr. : | B73: Name : | G73: Start-Nr. : | H73: Name :
A74: =A63+2 -> 15 | G74: =A74+1 -> 16
A75: SERIE : | B75: PUNKTE : | C75: SUMME : | D75: OK : | G75: SERIE : | H75: PUNKTE : | I75: SUMME : | J75: OK :
A76: 1 | G76: 1
A77: 2 | G77: 2
A78: 3 | G78: 3
A79: 4 | G79: 4
A80: SUMME : | G80: SUMME :
A81: =$A$1 -> Veranstaltung | C81: =$C$1 -> Datum | G81: =$A$1 -> Veranstaltung | I81: =$C$1 -> Datum
A82: Start-Nr. : | B82: Name : | G82: Start-Nr. : | H82: Name :
A83: =A74+2 -> 17 | G83: =A83+1 -> 18
A84: SERIE : | B84: PUNKTE : | C84: SUMME : | D84: OK : | G84: SERIE : | H84: PUNKTE : | I84: SUMME : | J84: OK :
A85: 1 | G85: 1
A86: 2 | G86: 2
A87: 3 | G87: 3
A88: 4 | G88: 4
A89: SUMME : | G89: SUMME :
A92: =$A$1 -> Veranstaltung | C92: =$C$1 -> Datum | G92: =$A$1 -> Veranstaltung | I92: =$C$1 -> Datum
A93: Start-Nr. : | B93: Name : | G93: Start-Nr. : | H93: Name :
A94: =A83+2 -> 19 | G94: =A94+1 -> 20
A95: SERIE : | B95: PUNKTE : | C95: SUMME : | D95: OK : | G95: SERIE : | H95: PUNKTE : | I95: SUMME : | J95: OK :
A96: 1 | G96: 1
A97: 2 | G97: 2
A98: 3 | G98: 3
A99: 4 | G99: 4
A100: SUMME : | G100: SUMME :
A101: =$A$1 -> Veranstaltung | C101: =$C$1 -> Datum | G101: =$A$1 -> Veranstaltung | I101: =$C$1 -> Datum
A102: Start-Nr. : | B102: Name : | G102: Start-Nr. : | H102: Name :
A103: =A94+2 -> 21 | G103: =A103+1 -> 22
A104: SERIE : | B104: PUNKTE : | C104: SUMME : | D104: OK : | G104: SERIE : | H104: PUNKTE : | I104: SUMME : | J104: OK :
A105: 1 | G105: 1
A106: 2 | G106: 2
A107: 3 | G107: 3
A108: 4 | G108: 4
A109: SUMME : | G109: SUMME :
A112: =$A$1 -> Veranstaltung | C112: =$C$1 -> Datum | G112: =$A$1 -> Veranstaltung | I112: =$C$1 -> Datum
A113: Start-Nr. : | B113: Name : | G113: Start-Nr. : | H113: Name :
A114: =A103+2 -> 23 | G114: =A114+1 -> 24
A115: SERIE : | B115: PUNKTE : | C115: SUMME : | D115: OK : | G115: SERIE : | H115: PUNKTE : | I115: SUMME : | J115: OK :
A116: 1 | G116: 1
A117: 2 | G117: 2
A118: 3 | G118: 3
A119: 4 | G119: 4
A120: SUMME : | G120: SUMME :
A121: =$A$1 -> Veranstaltung | C121: =$C$1 -> Datum | G121: =$A$1 -> Veranstaltung | I121: =$C$1 -> Datum
A122: Start-Nr. : | B122: Name : | G122: Start-Nr. : | H122: Name :
A123: =A114+2 -> 25 | G123: =A123+1 -> 26
A124: SERIE : | B124: PUNKTE : | C124: SUMME : | D124: OK : | G124: SERIE : | H124: PUNKTE : | I124: SUMME : | J124: OK :
A125: 1 | G125: 1
A126: 2 | G126: 2
A127: 3 | G127: 3
A128: 4 | G128: 4
A129: SUMME : | G129: SUMME :
A132: =$A$1 -> Veranstaltung | C132: =$C$1 -> Datum | G132: =$A$1 -> Veranstaltung | I132: =$C$1 -> Datum
A133: Start-Nr. : | B133: Name : | G133: Start-Nr. : | H133: Name :
A134: =A123+2 -> 27 | G134: =A134+1 -> 28
A135: SERIE : | B135: PUNKTE : | C135: SUMME : | D135: OK : | G135: SERIE : | H135: PUNKTE : | I135: SUMME : | J135: OK :
A136: 1 | G136: 1
A137: 2 | G137: 2
A138: 3 | G138: 3
A139: 4 | G139: 4
A140: SUMME : | G140: SUMME :
A141: =$A$1 -> Veranstaltung | C141: =$C$1 -> Datum | G141: =$A$1 -> Veranstaltung | I141: =$C$1 -> Datum
A142: Start-Nr. : | B142: Name : | G142: Start-Nr. : | H142: Name :
A143: =A134+2 -> 29 | G143: =A143+1 -> 30
A144: SERIE : | B144: PUNKTE : | C144: SUMME : | D144: OK : | G144: SERIE : | H144: PUNKTE : | I144: SUMME : | J144: OK :
A145: 1 | G145: 1
A146: 2 | G146: 2
A147: 3 | G147: 3
A148: 4 | G148: 4
A149: SUMME : | G149: SUMME :
A152: =$A$1 -> Veranstaltung | C152: =$C$1 -> Datum | G152: =$A$1 -> Veranstaltung | I152: =$C$1 -> Datum
A153: Start-Nr. : | B153: Name : | G153: Start-Nr. : | H153: Name :
A154: =A143+2 -> 31 | G154: =A154+1 -> 32
A155: SERIE : | B155: PUNKTE : | C155: SUMME : | D155: OK : | G155: SERIE : | H155: PUNKTE : | I155: SUMME : | J155: OK :
A156: 1 | G156: 1
A157: 2 | G157: 2
A158: 3 | G158: 3
A159: 4 | G159: 4
A160: SUMME : | G160: SUMME :
A161: =$A$1 -> Veranstaltung | C161: =$C$1 -> Datum | G161: =$A$1 -> Veranstaltung | I161: =$C$1 -> Datum
A162: Start-Nr. : | B162: Name : | G162: Start-Nr. : | H162: Name :
A163: =A154+2 -> 33 | G163: =A163+1 -> 34
A164: SERIE : | B164: PUNKTE : | C164: SUMME : | D164: OK : | G164: SERIE : | H164: PUNKTE : | I164: SUMME : | J164: OK :
A165: 1 | G165: 1
A166: 2 | G166: 2
A167: 3 | G167: 3
A168: 4 | G168: 4
A169: SUMME : | G169: SUMME :
A172: =$A$1 -> Veranstaltung | C172: =$C$1 -> Datum | G172: =$A$1 -> Veranstaltung | I172: =$C$1 -> Datum
A173: Start-Nr. : | B173: Name : | G173: Start-Nr. : | H173: Name :
A174: =A163+2 -> 35 | G174: =A174+1 -> 36
A175: SERIE : | B175: PUNKTE : | C175: SUMME : | D175: OK : | G175: SERIE : | H175: PUNKTE : | I175: SUMME : | J175: OK :
A176: 1 | G176: 1
A177: 2 | G177: 2
A178: 3 | G178: 3
A179: 4 | G179: 4
A180: SUMME : | G180: SUMME :
A181: =$A$1 -> Veranstaltung | C181: =$C$1 -> Datum | G181: =$A$1 -> Veranstaltung | I181: =$C$1 -> Datum
A182: Start-Nr. : | B182: Name : | G182: Start-Nr. : | H182: Name :
A183: =A174+2 -> 37 | G183: =A183+1 -> 38
A184: SERIE : | B184: PUNKTE : | C184: SUMME : | D184: OK : | G184: SERIE : | H184: PUNKTE : | I184: SUMME : | J184: OK :
A185: 1 | G185: 1
A186: 2 | G186: 2
A187: 3 | G187: 3
A188: 4 | G188: 4
A189: SUMME : | G189: SUMME :
A192: =$A$1 -> Veranstaltung | C192: =$C$1 -> Datum | G192: =$A$1 -> Veranstaltung | I192: =$C$1 -> Datum
A193: Start-Nr. : | B193: Name : | G193: Start-Nr. : | H193: Name :
A194: =A183+2 -> 39 | G194: =A194+1 -> 40
A195: SERIE : | B195: PUNKTE : | C195: SUMME : | D195: OK : | G195: SERIE : | H195: PUNKTE : | I195: SUMME : | J195: OK :
A196: 1 | G196: 1
A197: 2 | G197: 2
A198: 3 | G198: 3
A199: 4 | G199: 4
A200: SUMME : | G200: SUMME :
A201: =$A$1 -> Veranstaltung | C201: =$C$1 -> Datum | G201: =$A$1 -> Veranstaltung | I201: =$C$1 -> Datum
A202: Start-Nr. : | B202: Name : | G202: Start-Nr. : | H202: Name :
A203: =A194+2 -> 41 | G203: =A203+1 -> 42
A204: SERIE : | B204: PUNKTE : | C204: SUMME : | D204: OK : | G204: SERIE : | H204: PUNKTE : | I204: SUMME : | J204: OK :
A205: 1 | G205: 1
A206: 2 | G206: 2
A207: 3 | G207: 3
A208: 4 | G208: 4
A209: SUMME : | G209: SUMME :
A212: =$A$1 -> Veranstaltung | C212: =$C$1 -> Datum | G212: =$A$1 -> Veranstaltung | I212: =$C$1 -> Datum
A213: Start-Nr. : | B213: Name : | G213: Start-Nr. : | H213: Name :
A214: =A203+2 -> 43 | G214: =A214+1 -> 44
A215: SERIE : | B215: PUNKTE : | C215: SUMME : | D215: OK : | G215: SERIE : | H215: PUNKTE : | I215: SUMME : | J215: OK :
A216: 1 | G216: 1
A217: 2 | G217: 2
A218: 3 | G218: 3
A219: 4 | G219: 4
A220: SUMME : | G220: SUMME :
A221: =$A$1 -> Veranstaltung | C221: =$C$1 -> Datum | G221: =$A$1 -> Veranstaltung | I221: =$C$1 -> Datum
A222: Start-Nr. : | B222: Name : | G222: Start-Nr. : | H222: Name :
... 160 more rows

Sheet StaKa T 3 S.
A1: Tandem: | L1: 1 | N1: 8 | O1: Auf Druckeinstellung achten!
A2: Verein: | O2: Ob eine oder 2 Seiten je Blatt!
A3: Name, Vorname | F3: 1. Serie | H3: 2. Serie: | J3: 3. Serie: | L3: Gesamt:
F7: Spielpunkte:
J8: Gesamtpunkte:
A11: Tandem: | L11: =L1+N1 -> 9
A12: Verein:
A13: Name, Vorname | F13: 1. Serie | H13: 2. Serie: | J13: 3. Serie: | L13: Gesamt:
F17: Spielpunkte:
J18: Gesamtpunkte:
A21: Tandem: | L21: =L1+2*N1 -> 17
A22: Verein:
A23: Name, Vorname | F23: 1. Serie | H23: 2. Serie: | J23: 3. Serie: | L23: Gesamt:
F27: Spielpunkte:
J28: Gesamtpunkte:
A29: Tandem: | L29: =L1+1 -> 2
A30: Verein:
A31: Name, Vorname | F31: 1. Serie | H31: 2. Serie: | J31: 3. Serie: | L31: Gesamt:
F35: Spielpunkte:
J36: Gesamtpunkte:
A39: Tandem: | L39: =L11+1 -> 10
A40: Verein:
A41: Name, Vorname | F41: 1. Serie | H41: 2. Serie: | J41: 3. Serie: | L41: Gesamt:
F45: Spielpunkte:
J46: Gesamtpunkte:
A49: Tandem: | L49: =L21+1 -> 18
A50: Verein:
A51: Name, Vorname | F51: 1. Serie | H51: 2. Serie: | J51: 3. Serie: | L51: Gesamt:
F55: Spielpunkte:
J56: Gesamtpunkte:
A57: Tandem: | L57: =L29+1 -> 3
A58: Verein:
A59: Name, Vorname | F59: 1. Serie | H59: 2. Serie: | J59: 3. Serie: | L59: Gesamt:
F63: Spielpunkte:
J64: Gesamtpunkte:
A67: Tandem: | L67: =L39+1 -> 11
A68: Verein:
A69: Name, Vorname | F69: 1. Serie | H69: 2. Serie: | J69: 3. Serie: | L69: Gesamt:
F73: Spielpunkte:
J74: Gesamtpunkte:
A77: Tandem: | L77: =L49+1 -> 19
A78: Verein:
A79: Name, Vorname | F79: 1. Serie | H79: 2. Serie: | J79: 3. Serie: | L79: Gesamt:
F83: Spielpunkte:
J84: Gesamtpunkte:
A85: Tandem: | L85: =L57+1 -> 4
A86: Verein:
A87: Name, Vorname | F87: 1. Serie | H87: 2. Serie: | J87: 3. Serie: | L87: Gesamt:
F91: Spielpunkte:
J92: Gesamtpunkte:
A95: Tandem: | L95: =L67+1 -> 12
A96: Verein:
A97: Name, Vorname | F97: 1. Serie | H97: 2. Serie: | J97: 3. Serie: | L97: Gesamt:
F101: Spielpunkte:
J102: Gesamtpunkte:
A105: Tandem: | L105: =L77+1 -> 20
A106: Verein:
A107: Name, Vorname | F107: 1. Serie | H107: 2. Serie: | J107: 3. Serie: | L107: Gesamt:
F111: Spielpunkte:
J112: Gesamtpunkte:
A113: Tandem: | L113: =L85+1 -> 5
A114: Verein:
A115: Name, Vorname | F115: 1. Serie | H115: 2. Serie: | J115: 3. Serie: | L115: Gesamt:
F119: Spielpunkte:
J120: Gesamtpunkte:
A123: Tandem: | L123: =L95+1 -> 13
A124: Verein:
A125: Name, Vorname | F125: 1. Serie | H125: 2. Serie: | J125: 3. Serie: | L125: Gesamt:
F129: Spielpunkte:
J130: Gesamtpunkte:
A133: Tandem: | L133: =L105+1 -> 21
A134: Verein:
A135: Name, Vorname | F135: 1. Serie | H135: 2. Serie: | J135: 3. Serie: | L135: Gesamt:
F139: Spielpunkte:
J140: Gesamtpunkte:
A141: Tandem: | L141: =L113+1 -> 6
A142: Verein:
A143: Name, Vorname | F143: 1. Serie | H143: 2. Serie: | J143: 3. Serie: | L143: Gesamt:
F147: Spielpunkte:
J148: Gesamtpunkte:
A151: Tandem: | L151: =L123+1 -> 14
A152: Verein:
A153: Name, Vorname | F153: 1. Serie | H153: 2. Serie: | J153: 3. Serie: | L153: Gesamt:
F157: Spielpunkte:
J158: Gesamtpunkte:
A161: Tandem: | L161: =L133+1 -> 22
A162: Verein:
A163: Name, Vorname | F163: 1. Serie | H163: 2. Serie: | J163: 3. Serie: | L163: Gesamt:
F167: Spielpunkte:
J168: Gesamtpunkte:
A169: Tandem: | L169: =L141+1 -> 7
A170: Verein:
A171: Name, Vorname | F171: 1. Serie | H171: 2. Serie: | J171: 3. Serie: | L171: Gesamt:
F175: Spielpunkte:
J176: Gesamtpunkte:
A179: Tandem: | L179: =L151+1 -> 15
A180: Verein:
A181: Name, Vorname | F181: 1. Serie | H181: 2. Serie: | J181: 3. Serie: | L181: Gesamt:
F185: Spielpunkte:
J186: Gesamtpunkte:
A189: Tandem: | L189: =L161+1 -> 23
A190: Verein:
A191: Name, Vorname | F191: 1. Serie | H191: 2. Serie: | J191: 3. Serie: | L191: Gesamt:
F195: Spielpunkte:
J196: Gesamtpunkte:
A197: Tandem: | L197: =L169+1 -> 8
A198: Verein:
A199: Name, Vorname | F199: 1. Serie | H199: 2. Serie: | J199: 3. Serie: | L199: Gesamt:
F203: Spielpunkte:
J204: Gesamtpunkte:
A207: Tandem: | L207: =L179+1 -> 16
A208: Verein:
A209: Name, Vorname | F209: 1. Serie | H209: 2. Serie: | J209: 3. Serie: | L209: Gesamt:
F213: Spielpunkte:
J214: Gesamtpunkte:
A217: Tandem: | L217: =L189+1 -> 24
A218: Verein:
A219: Name, Vorname | F219: 1. Serie | H219: 2. Serie: | J219: 3. Serie: | L219: Gesamt:
F223: Spielpunkte:
J224: Gesamtpunkte:

Sheet StaKa Mi 3 S.
A1: Mixed: | L1: 1 | N1: 8 | O1: Auf Druckeinstellung achten!
A2: Verein: | O2: Ob eine oder 2 Seiten je Blatt!
A3: Name, Vorname | F3: 1. Serie | H3: 2. Serie: | J3: 3. Serie: | L3: Gesamt:
F7: Spielpunkte:
J8: Gesamtpunkte:
A11: Mixed: | L11: =L1+N1 -> 9
A12: Verein:
A13: Name, Vorname | F13: 1. Serie | H13: 2. Serie: | J13: 3. Serie: | L13: Gesamt:
F17: Spielpunkte:
J18: Gesamtpunkte:
A21: Mixed: | L21: =L1+2*N1 -> 17
A22: Verein:
A23: Name, Vorname | F23: 1. Serie | H23: 2. Serie: | J23: 3. Serie: | L23: Gesamt:
F27: Spielpunkte:
J28: Gesamtpunkte:
A29: Mixed: | L29: =L1+1 -> 2
A30: Verein:
A31: Name, Vorname | F31: 1. Serie | H31: 2. Serie: | J31: 3. Serie: | L31: Gesamt:
F35: Spielpunkte:
J36: Gesamtpunkte:
A39: Mixed: | L39: =L11+1 -> 10
A40: Verein:
A41: Name, Vorname | F41: 1. Serie | H41: 2. Serie: | J41: 3. Serie: | L41: Gesamt:
F45: Spielpunkte:
J46: Gesamtpunkte:
A49: Mixed: | L49: =L21+1 -> 18
A50: Verein:
A51: Name, Vorname | F51: 1. Serie | H51: 2. Serie: | J51: 3. Serie: | L51: Gesamt:
F55: Spielpunkte:
J56: Gesamtpunkte:
A57: Mixed: | L57: =L29+1 -> 3
A58: Verein:
A59: Name, Vorname | F59: 1. Serie | H59: 2. Serie: | J59: 3. Serie: | L59: Gesamt:
F63: Spielpunkte:
J64: Gesamtpunkte:
A67: Mixed: | L67: =L39+1 -> 11
A68: Verein:
A69: Name, Vorname | F69: 1. Serie | H69: 2. Serie: | J69: 3. Serie: | L69: Gesamt:
F73: Spielpunkte:
J74: Gesamtpunkte:
A77: Mixed: | L77: =L49+1 -> 19
A78: Verein:
A79: Name, Vorname | F79: 1. Serie | H79: 2. Serie: | J79: 3. Serie: | L79: Gesamt:
F83: Spielpunkte:
J84: Gesamtpunkte:
A85: Mixed: | L85: =L57+1 -> 4
A86: Verein:
A87: Name, Vorname | F87: 1. Serie | H87: 2. Serie: | J87: 3. Serie: | L87: Gesamt:
F91: Spielpunkte:
J92: Gesamtpunkte:
A95: Mixed: | L95: =L67+1 -> 12
A96: Verein:
A97: Name, Vorname | F97: 1. Serie | H97: 2. Serie: | J97: 3. Serie: | L97: Gesamt:
F101: Spielpunkte:
J102: Gesamtpunkte:
A105: Mixed: | L105: =L77+1 -> 20
A106: Verein:
A107: Name, Vorname | F107: 1. Serie | H107: 2. Serie: | J107: 3. Serie: | L107: Gesamt:
F111: Spielpunkte:
J112: Gesamtpunkte:
A113: Mixed: | L113: =L85+1 -> 5
A114: Verein:
A115: Name, Vorname | F115: 1. Serie | H115: 2. Serie: | J115: 3. Serie: | L115: Gesamt:
F119: Spielpunkte:
J120: Gesamtpunkte:
A123: Mixed: | L123: =L95+1 -> 13
A124: Verein:
A125: Name, Vorname | F125: 1. Serie | H125: 2. Serie: | J125: 3. Serie: | L125: Gesamt:
F129: Spielpunkte:
J130: Gesamtpunkte:
A133: Mixed: | L133: =L105+1 -> 21
A134: Verein:
A135: Name, Vorname | F135: 1. Serie | H135: 2. Serie: | J135: 3. Serie: | L135: Gesamt:
F139: Spielpunkte:
J140: Gesamtpunkte:
A141: Mixed: | L141: =L113+1 -> 6
A142: Verein:
A143: Name, Vorname | F143: 1. Serie | H143: 2. Serie: | J143: 3. Serie: | L143: Gesamt:
F147: Spielpunkte:
J148: Gesamtpunkte:
A151: Mixed: | L151: =L123+1 -> 14
A152: Verein:
A153: Name, Vorname | F153: 1. Serie | H153: 2. Serie: | J153: 3. Serie: | L153: Gesamt:
F157: Spielpunkte:
J158: Gesamtpunkte:
A161: Mixed: | L161: =L133+1 -> 22
A162: Verein:
A163: Name, Vorname | F163: 1. Serie | H163: 2. Serie: | J163: 3. Serie: | L163: Gesamt:
F167: Spielpunkte:
J168: Gesamtpunkte:
A169: Mixed: | L169: =L141+1 -> 7
A170: Verein:
A171: Name, Vorname | F171: 1. Serie | H171: 2. Serie: | J171: 3. Serie: | L171: Gesamt:
F175: Spielpunkte:
J176: Gesamtpunkte:
A179: Mixed: | L179: =L151+1 -> 15
A180: Verein:
A181: Name, Vorname | F181: 1. Serie | H181: 2. Serie: | J181: 3. Serie: | L181: Gesamt:
F185: Spielpunkte:
J186: Gesamtpunkte:
A189: Mixed: | L189: =L161+1 -> 23
A190: Verein:
A191: Name, Vorname | F191: 1. Serie | H191: 2. Serie: | J191: 3. Serie: | L191: Gesamt:
F195: Spielpunkte:
J196: Gesamtpunkte:
A197: Mixed: | L197: =L169+1 -> 8
A198: Verein:
A199: Name, Vorname | F199: 1. Serie | H199: 2. Serie: | J199: 3. Serie: | L199: Gesamt:
F203: Spielpunkte:
J204: Gesamtpunkte:
A207: Mixed: | L207: =L179+1 -> 16
A208: Verein:
A209: Name, Vorname | F209: 1. Serie | H209: 2. Serie: | J209: 3. Serie: | L209: Gesamt:
F213: Spielpunkte:
J214: Gesamtpunkte:
A217: Mixed: | L217: =L189+1 -> 24
A218: Verein:
A219: Name, Vorname | F219: 1. Serie | H219: 2. Serie: | J219: 3. Serie: | L219: Gesamt:
F223: Spielpunkte:
J224: Gesamtpunkte:

Sheet StaKa Ma 3 S.
A1: Mannschaft: | L1: 1 | N1: 12 | O1: Auf Druckeinstellung achten!
A2: Verein: | O2: Ob eine oder 2 Seiten je Blatt!
A3: Adresse:
A4: Name, Vorname | F4: 1. Serie | H4: 2. Serie: | J4: 3. Serie: | L4: Gesamt:
F10: Spielpunkte:
F11: Gesamtspielpunkte:
J12: Gesamtpunkte:
A15: Mannschaft: | L15: =L1+N1 -> 13
A16: Verein:
A17: Adresse:
A18: Name, Vorname | F18: 1. Serie | H18: 2. Serie: | J18: 3. Serie: | L18: Gesamt:
F24: Spielpunkte:
F25: Gesamtspielpunkte:
J26: Gesamtpunkte:
A27: Mannschaft: | L27: =L1+1 -> 2
A28: Verein:
A29: Adresse:
A30: Name, Vorname | F30: 1. Serie | H30: 2. Serie: | J30: 3. Serie: | L30: Gesamt:
F36: Spielpunkte:
F37: Gesamtspielpunkte:
J38: Gesamtpunkte:
A41: Mannschaft: | L41: =L27+N1 -> 14
A42: Verein:
A43: Adresse:
A44: Name, Vorname | F44: 1. Serie | H44: 2. Serie: | J44: 3. Serie: | L44: Gesamt:
F50: Spielpunkte:
F51: Gesamtspielpunkte:
J52: Gesamtpunkte:
A53: Mannschaft: | L53: =L27+1 -> 3
A54: Verein:
A55: Adresse:
A56: Name, Vorname | F56: 1. Serie | H56: 2. Serie: | J56: 3. Serie: | L56: Gesamt:
F62: Spielpunkte:
F63: Gesamtspielpunkte:
J64: Gesamtpunkte:
A67: Mannschaft: | L67: =L53+N1 -> 15
A68: Verein:
A69: Adresse:
A70: Name, Vorname | F70: 1. Serie | H70: 2. Serie: | J70: 3. Serie: | L70: Gesamt:
F76: Spielpunkte:
F77: Gesamtspielpunkte:
J78: Gesamtpunkte:
A79: Mannschaft: | L79: =L53+1 -> 4
A80: Verein:
A81: Adresse:
A82: Name, Vorname | F82: 1. Serie | H82: 2. Serie: | J82: 3. Serie: | L82: Gesamt:
F88: Spielpunkte:
F89: Gesamtspielpunkte:
J90: Gesamtpunkte:
A93: Mannschaft: | L93: =L79+N1 -> 16
A94: Verein:
A95: Adresse:
A96: Name, Vorname | F96: 1. Serie | H96: 2. Serie: | J96: 3. Serie: | L96: Gesamt:
F102: Spielpunkte:
F103: Gesamtspielpunkte:
J104: Gesamtpunkte:
A105: Mannschaft: | L105: =L79+1 -> 5
A106: Verein:
A107: Adresse:
A108: Name, Vorname | F108: 1. Serie | H108: 2. Serie: | J108: 3. Serie: | L108: Gesamt:
F114: Spielpunkte:
F115: Gesamtspielpunkte:
J116: Gesamtpunkte:
A119: Mannschaft: | L119: =L105+N1 -> 17
A120: Verein:
A121: Adresse:
A122: Name, Vorname | F122: 1. Serie | H122: 2. Serie: | J122: 3. Serie: | L122: Gesamt:
F128: Spielpunkte:
F129: Gesamtspielpunkte:
J130: Gesamtpunkte:
A131: Mannschaft: | L131: =L105+1 -> 6
A132: Verein:
A133: Adresse:
A134: Name, Vorname | F134: 1. Serie | H134: 2. Serie: | J134: 3. Serie: | L134: Gesamt:
F140: Spielpunkte:
F141: Gesamtspielpunkte:
J142: Gesamtpunkte:
A145: Mannschaft: | L145: =L131+N1 -> 18
A146: Verein:
A147: Adresse:
A148: Name, Vorname | F148: 1. Serie | H148: 2. Serie: | J148: 3. Serie: | L148: Gesamt:
F154: Spielpunkte:
F155: Gesamtspielpunkte:
J156: Gesamtpunkte:
A157: Mannschaft: | L157: =L131+1 -> 7
A158: Verein:
A159: Adresse:
A160: Name, Vorname | F160: 1. Serie | H160: 2. Serie: | J160: 3. Serie: | L160: Gesamt:
F166: Spielpunkte:
F167: Gesamtspielpunkte:
J168: Gesamtpunkte:
A171: Mannschaft: | L171: =L157+N1 -> 19
A172: Verein:
A173: Adresse:
A174: Name, Vorname | E174: Start- Nr.: | F174: Passnummer: | H174: 2. Serie: | J174: 3. Serie: | L174: Gesamt:
F180: Spielpunkte:
F181: Gesamtspielpunkte:
J182: Gesamtpunkte:
A183: Mannschaft: | L183: =L157+1 -> 8
A184: Verein:
A185: Adresse:
A186: Name, Vorname | F186: 1. Serie | H186: 2. Serie: | J186: 3. Serie: | L186: Gesamt:
F192: Spielpunkte:
F193: Gesamtspielpunkte:
J194: Gesamtpunkte:
A197: Mannschaft: | L197: =L183+N1 -> 20
A198: Verein:
A199: Adresse:
A200: Name, Vorname | F200: 1. Serie | H200: 2. Serie: | J200: 3. Serie: | L200: Gesamt:
F206: Spielpunkte:
F207: Gesamtspielpunkte:
J208: Gesamtpunkte:
A209: Mannschaft: | L209: =L183+1 -> 9
A210: Verein:
A211: Adresse:
A212: Name, Vorname | F212: 1. Serie | H212: 2. Serie: | J212: 3. Serie: | L212: Gesamt:
F218: Spielpunkte:
F219: Gesamtspielpunkte:
J220: Gesamtpunkte:
A223: Mannschaft: | L223: =L209+N1 -> 21
A224: Verein:
A225: Adresse:
A226: Name, Vorname | F226: 1. Serie | H226: 2. Serie: | J226: 3. Serie: | L226: Gesamt:
F232: Spielpunkte:
F233: Gesamtspielpunkte:
J234: Gesamtpunkte:
A235: Mannschaft: | L235: =L209+1 -> 10
A236: Verein:
A237: Adresse:
A238: Name, Vorname | F238: 1. Serie | H238: 2. Serie: | J238: 3. Serie: | L238: Gesamt:
F244: Spielpunkte:
F245: Gesamtspielpunkte:
J246: Gesamtpunkte:
A249: Mannschaft: | L249: =L235+N1 -> 22
A250: Verein:
A251: Adresse:
A252: Name, Vorname | F252: 1. Serie | H252: 2. Serie: | J252: 3. Serie: | L252: Gesamt:
F258: Spielpunkte:
F259: Gesamtspielpunkte:
J260: Gesamtpunkte:
A261: Mannschaft: | L261: =L235+1 -> 11
A262: Verein:
A263: Adresse:
A264: Name, Vorname | E264: Start- Nr.: | F264: Passnummer: | H264: 2. Serie: | J264: 3. Serie: | L264: Gesamt:
F270: Spielpunkte:
F271: Gesamtspielpunkte:
J272: Gesamtpunkte:
A275: Mannschaft: | L275: =L261+N1 -> 23
A276: Verein:
A277: Adresse:
A278: Name, Vorname | F278: 1. Serie | H278: 2. Serie: | J278: 3. Serie: | L278: Gesamt:
F284: Spielpunkte:
F285: Gesamtspielpunkte:
J286: Gesamtpunkte:
A287: Mannschaft: | L287: =L261+1 -> 12
A288: Verein:
A289: Adresse:
A290: Name, Vorname | F290: 1. Serie | H290: 2. Serie: | J290: 3. Serie: | L290: Gesamt:
F296: Spielpunkte:
F297: Gesamtspielpunkte:
J298: Gesamtpunkte:
A301: Mannschaft: | L301: =L287+N1 -> 24
A302: Verein:
A303: Adresse:
A304: Name, Vorname | F304: 1. Serie | H304: 2. Serie: | J304: 3. Serie: | L304: Gesamt:
F310: Spielpunkte:
F311: Gesamtspielpunkte:
J312: Gesamtpunkte:

Sheet StaKa E 3 S. (ohne 1.)
A1: Name, Vorname | H1: 1 | J1: Auf Druckeinstellung achten!
A2: Verein: | J2: Ob eine oder 2 Seiten je Blatt!
A3: Serie | B3: Tisch | C3: Platz | D3: Spielpunkte | E3: gew. | F3: ver.. | G3: v.G. | H3: Gesamtpunkte | J3: 16 Spieler, 1. Serie wird gelost
A4: 1 | J4: 2. + 3. Serie wird gesetzt
A5: 2 | J5: oder nach "Hinweis" weitergesetzt.
A6: 3
A7: Summe:
A10: Name, Vorname | H10: =H1+1 -> 2
A11: Verein:
A12: Serie | B12: Tisch | C12: Platz | D12: Spielpunkte | E12: gew. | F12: ver.. | G12: v.G. | H12: Gesamtpunkte
A13: 1
A14: 2
A15: 3
A16: Summe:
A19: Name, Vorname | H19: =H10+1 -> 3
A20: Verein:
A21: Serie | B21: Tisch | C21: Platz | D21: Spielpunkte | E21: gew. | F21: ver.. | G21: v.G. | H21: Gesamtpunkte
A22: 1
A23: 2
A24: 3
A25: Summe:
A28: Name, Vorname | H28: =H19+1 -> 4
A29: Verein:
A30: Serie | B30: Tisch | C30: Platz | D30: Spielpunkte | E30: gew. | F30: ver.. | G30: v.G. | H30: Gesamtpunkte
A31: 1
A32: 2
A33: 3
A34: Summe:
A35: Name, Vorname | H35: =H28+1 -> 5
A36: Verein:
A37: Serie | B37: Tisch | C37: Platz | D37: Spielpunkte | E37: gew. | F37: ver.. | G37: v.G. | H37: Gesamtpunkte
A38: 1
A39: 2
A40: 3
A41: Summe:
A44: Name, Vorname | H44: =H35+1 -> 6
A45: Verein:
A46: Serie | B46: Tisch | C46: Platz | D46: Spielpunkte | E46: gew. | F46: ver.. | G46: v.G. | H46: Gesamtpunkte
A47: 1
A48: 2
A49: 3
A50: Summe:
A53: Name, Vorname | H53: =H44+1 -> 7
A54: Verein:
A55: Serie | B55: Tisch | C55: Platz | D55: Spielpunkte | E55: gew. | F55: ver.. | G55: v.G. | H55: Gesamtpunkte
A56: 1
A57: 2
A58: 3
A59: Summe:
A62: Name, Vorname | H62: =H53+1 -> 8
A63: Verein:
A64: Serie | B64: Tisch | C64: Platz | D64: Spielpunkte | E64: gew. | F64: ver.. | G64: v.G. | H64: Gesamtpunkte
A65: 1
A66: 2
A67: 3
A68: Summe:
A69: Name, Vorname | H69: =H62+1 -> 9
A70: Verein:
A71: Serie | B71: Tisch | C71: Platz | D71: Spielpunkte | E71: gew. | F71: ver.. | G71: v.G. | H71: Gesamtpunkte
A72: 1
A73: 2
A74: 3
A75: Summe:
A78: Name, Vorname | H78: =H69+1 -> 10
A79: Verein:
A80: Serie | B80: Tisch | C80: Platz | D80: Spielpunkte | E80: gew. | F80: ver.. | G80: v.G. | H80: Gesamtpunkte
A81: 1
A82: 2
A83: 3
A84: Summe:
A87: Name, Vorname | H87: =H78+1 -> 11
A88: Verein:
A89: Serie | B89: Tisch | C89: Platz | D89: Spielpunkte | E89: gew. | F89: ver.. | G89: v.G. | H89: Gesamtpunkte
A90: 1
A91: 2
A92: 3
A93: Summe:
A96: Name, Vorname | H96: =H87+1 -> 12
A97: Verein:
A98: Serie | B98: Tisch | C98: Platz | D98: Spielpunkte | E98: gew. | F98: ver.. | G98: v.G. | H98: Gesamtpunkte
A99: 1
A100: 2
A101: 3
A102: Summe:
A103: Name, Vorname | H103: =H96+1 -> 13
A104: Verein:
A105: Serie | B105: Tisch | C105: Platz | D105: Spielpunkte | E105: gew. | F105: ver.. | G105: v.G. | H105: Gesamtpunkte
A106: 1
A107: 2
A108: 3
A109: Summe:
A112: Name, Vorname | H112: =H103+1 -> 14
A113: Verein:
A114: Serie | B114: Tisch | C114: Platz | D114: Spielpunkte | E114: gew. | F114: ver.. | G114: v.G. | H114: Gesamtpunkte
A115: 1
A116: 2
A117: 3
A118: Summe:
A121: Name, Vorname | H121: =H112+1 -> 15
A122: Verein:
A123: Serie | B123: Tisch | C123: Platz | D123: Spielpunkte | E123: gew. | F123: ver.. | G123: v.G. | H123: Gesamtpunkte
A124: 1
A125: 2
A126: 3
A127: Summe:
A130: Name, Vorname | H130: =H121+1 -> 16
A131: Verein:
A132: Serie | B132: Tisch | C132: Platz | D132: Spielpunkte | E132: gew. | F132: ver.. | G132: v.G. | H132: Gesamtpunkte
A133: 1
A134: 2
A135: 3
A136: Summe:

Sheet StaKa E 3 S. (ohne 2.)
A1: Name, Vorname | H1: 1 | J1: Auf Druckeinstellung achten!
A2: Verein: | J2: Ob eine oder 2 Seiten je Blatt!
A3: Serie | B3: Tisch | C3: Platz | D3: Spielpunkte | E3: gew. | F3: ver.. | G3: v.G. | H3: Gesamtpunkte | J3: 16 Spieler, 2. Serie wird gesetzt
A4: 1 | B4: 1 | C4: 1 | J4: oder nach "Hinweis" weitergesetzt.
A5: 2 | J5: Den Tisch jeweils um 4 erhöhen,
A6: 3 | J6: nächster Spieler dann 17, 33, 49 usw.
A7: Summe:
A10: Name, Vorname | H10: =H1+1 -> 2
A11: Verein:
A12: Serie | B12: Tisch | C12: Platz | D12: Spielpunkte | E12: gew. | F12: ver.. | G12: v.G. | H12: Gesamtpunkte
A13: 1 | B13: =B4 -> 1 | C13: =C4+1 -> 2
A14: 2
A15: 3
A16: Summe:
A19: Name, Vorname | H19: =H10+1 -> 3
A20: Verein:
A21: Serie | B21: Tisch | C21: Platz | D21: Spielpunkte | E21: gew. | F21: ver.. | G21: v.G. | H21: Gesamtpunkte
A22: 1 | B22: =B4 -> 1 | C22: =C13+1 -> 3
A23: 2
A24: 3
A25: Summe:
A28: Name, Vorname | H28: =H19+1 -> 4
A29: Verein:
A30: Serie | B30: Tisch | C30: Platz | D30: Spielpunkte | E30: gew. | F30: ver.. | G30: v.G. | H30: Gesamtpunkte
A31: 1 | B31: =B4 -> 1 | C31: =C22+1 -> 4
A32: 2
A33: 3
A34: Summe:
A35: Name, Vorname | H35: =H28+1 -> 5
A36: Verein:
A37: Serie | B37: Tisch | C37: Platz | D37: Spielpunkte | E37: gew. | F37: ver.. | G37: v.G. | H37: Gesamtpunkte
A38: 1 | B38: =B4+1 -> 2 | C38: =C4 -> 1
A39: 2
A40: 3
A41: Summe:
A44: Name, Vorname | H44: =H35+1 -> 6
A45: Verein:
A46: Serie | B46: Tisch | C46: Platz | D46: Spielpunkte | E46: gew. | F46: ver.. | G46: v.G. | H46: Gesamtpunkte
A47: 1 | B47: =B13+1 -> 2 | C47: =C38+1 -> 2
A48: 2
A49: 3
A50: Summe:
A53: Name, Vorname | H53: =H44+1 -> 7
A54: Verein:
A55: Serie | B55: Tisch | C55: Platz | D55: Spielpunkte | E55: gew. | F55: ver.. | G55: v.G. | H55: Gesamtpunkte
A56: 1 | B56: =B22+1 -> 2 | C56: =C47+1 -> 3
A57: 2
A58: 3
A59: Summe:
A62: Name, Vorname | H62: =H53+1 -> 8
A63: Verein:
A64: Serie | B64: Tisch | C64: Platz | D64: Spielpunkte | E64: gew. | F64: ver.. | G64: v.G. | H64: Gesamtpunkte
A65: 1 | B65: =B31+1 -> 2 | C65: =C56+1 -> 4
A66: 2
A67: 3
A68: Summe:
A69: Name, Vorname | H69: =H62+1 -> 9
A70: Verein:
A71: Serie | B71: Tisch | C71: Platz | D71: Spielpunkte | E71: gew. | F71: ver.. | G71: v.G. | H71: Gesamtpunkte
A72: 1 | B72: =B38+1 -> 3 | C72: =C4 -> 1
A73: 2
A74: 3
A75: Summe:
A78: Name, Vorname | H78: =H69+1 -> 10
A79: Verein:
A80: Serie | B80: Tisch | C80: Platz | D80: Spielpunkte | E80: gew. | F80: ver.. | G80: v.G. | H80: Gesamtpunkte
A81: 1 | B81: =B47+1 -> 3 | C81: =C72+1 -> 2
A82: 2
A83: 3
A84: Summe:
A87: Name, Vorname | H87: =H78+1 -> 11
A88: Verein:
A89: Serie | B89: Tisch | C89: Platz | D89: Spielpunkte | E89: gew. | F89: ver.. | G89: v.G. | H89: Gesamtpunkte
A90: 1 | B90: =B56+1 -> 3 | C90: =C81+1 -> 3
A91: 2
A92: 3
A93: Summe:
A96: Name, Vorname | H96: =H87+1 -> 12
A97: Verein:
A98: Serie | B98: Tisch | C98: Platz | D98: Spielpunkte | E98: gew. | F98: ver.. | G98: v.G. | H98: Gesamtpunkte
A99: 1 | B99: =B65+1 -> 3 | C99: =C90+1 -> 4
A100: 2
A101: 3
A102: Summe:
A103: Name, Vorname | H103: =H96+1 -> 13
A104: Verein:
A105: Serie | B105: Tisch | C105: Platz | D105: Spielpunkte | E105: gew. | F105: ver.. | G105: v.G. | H105: Gesamtpunkte
A106: 1 | B106: =B72+1 -> 4 | C106: =C4 -> 1
A107: 2
A108: 3
A109: Summe:
A112: Name, Vorname | H112: =H103+1 -> 14
A113: Verein:
A114: Serie | B114: Tisch | C114: Platz | D114: Spielpunkte | E114: gew. | F114: ver.. | G114: v.G. | H114: Gesamtpunkte
A115: 1 | B115: =B81+1 -> 4 | C115: =C106+1 -> 2
A116: 2
A117: 3
A118: Summe:
A121: Name, Vorname | H121: =H112+1 -> 15
A122: Verein:
A123: Serie | B123: Tisch | C123: Platz | D123: Spielpunkte | E123: gew. | F123: ver.. | G123: v.G. | H123: Gesamtpunkte
A124: 1 | B124: =B90+1 -> 4 | C124: =C115+1 -> 3
A125: 2
A126: 3
A127: Summe:
A130: Name, Vorname | H130: =H121+1 -> 16
A131: Verein:
A132: Serie | B132: Tisch | C132: Platz | D132: Spielpunkte | E132: gew. | F132: ver.. | G132: v.G. | H132: Gesamtpunkte
A133: 1 | B133: =B99+1 -> 4 | C133: =C124+1 -> 4
A134: 2
A135: 3
A136: Summe:

Sheet StaKa E 3 S. (ohne 3.)
A1: Name, Vorname | H1: 1 | J1: Auf Druckeinstellung achten!
A2: Verein: | J2: Ob eine oder 2 Seiten je Blatt!
A3: Serie | B3: Tisch | C3: Platz | D3: Spielpunkte | E3: gew. | F3: ver.. | G3: v.G. | H3: Gesamtpunkte | J3: 16 Spieler, 3. Serie wird gesetzt
A4: 1 | B4: 1 | C4: 1 | J4: oder nach "Hinweis" weitergesetzt.
A5: 2 | B5: =B4+1 -> 2 | C5: =C4+1 -> 2 | J5: Den Tisch jeweils um 4 erhöhen,
A6: 3 | J6: nächster Spieler dann 17, 33, 49 usw.
A7: Summe:
A10: Name, Vorname | H10: =H1+1 -> 2
A11: Verein:
A12: Serie | B12: Tisch | C12: Platz | D12: Spielpunkte | E12: gew. | F12: ver.. | G12: v.G. | H12: Gesamtpunkte
A13: 1 | B13: =B4 -> 1 | C13: =C4+1 -> 2
A14: 2 | B14: =B13+2 -> 3 | C14: =C5+1 -> 3
A15: 3
A16: Summe:
A19: Name, Vorname | H19: =H10+1 -> 3
A20: Verein:
A21: Serie | B21: Tisch | C21: Platz | D21: Spielpunkte | E21: gew. | F21: ver.. | G21: v.G. | H21: Gesamtpunkte
A22: 1 | B22: =B4 -> 1 | C22: =C13+1 -> 3
A23: 2 | B23: =B22+3 -> 4 | C23: =C14+1 -> 4
A24: 3
A25: Summe:
A28: Name, Vorname | H28: =H19+1 -> 4
A29: Verein:
A30: Serie | B30: Tisch | C30: Platz | D30: Spielpunkte | E30: gew. | F30: ver.. | G30: v.G. | H30: Gesamtpunkte
A31: 1 | B31: =B4 -> 1 | C31: =C22+1 -> 4
A32: 2 | B32: =B31+5 -> 6 | C32: =C23-3 -> 1
A33: 3
A34: Summe:
A35: Name, Vorname | H35: =H28+1 -> 5
A36: Verein:
A37: Serie | B37: Tisch | C37: Platz | D37: Spielpunkte | E37: gew. | F37: ver.. | G37: v.G. | H37: Gesamtpunkte
A38: 1 | B38: =B4+1 -> 2 | C38: =C4 -> 1
A39: 2 | B39: =B38+1 -> 3 | C39: =C38+1 -> 2
A40: 3
A41: Summe:
A44: Name, Vorname | H44: =H35+1 -> 6
A45: Verein:
A46: Serie | B46: Tisch | C46: Platz | D46: Spielpunkte | E46: gew. | F46: ver.. | G46: v.G. | H46: Gesamtpunkte
A47: 1 | B47: =B13+1 -> 2 | C47: =C38+1 -> 2
A48: 2 | B48: =B47+2 -> 4 | C48: =C39+1 -> 3
A49: 3
A50: Summe:
A53: Name, Vorname | H53: =H44+1 -> 7
A54: Verein:
A55: Serie | B55: Tisch | C55: Platz | D55: Spielpunkte | E55: gew. | F55: ver.. | G55: v.G. | H55: Gesamtpunkte
A56: 1 | B56: =B22+1 -> 2 | C56: =C47+1 -> 3
A57: 2 | B57: =B56+3 -> 5 | C57: =C48+1 -> 4
A58: 3
A59: Summe:
A62: Name, Vorname | H62: =H53+1 -> 8
A63: Verein:
A64: Serie | B64: Tisch | C64: Platz | D64: Spielpunkte | E64: gew. | F64: ver.. | G64: v.G. | H64: Gesamtpunkte
A65: 1 | B65: =B31+1 -> 2 | C65: =C56+1 -> 4
A66: 2 | B66: =B65+5 -> 7 | C66: =C57-3 -> 1
A67: 3
A68: Summe:
A69: Name, Vorname | H69: =H62+1 -> 9
A70: Verein:
A71: Serie | B71: Tisch | C71: Platz | D71: Spielpunkte | E71: gew. | F71: ver.. | G71: v.G. | H71: Gesamtpunkte
A72: 1 | B72: =B38+1 -> 3 | C72: =C4 -> 1
A73: 2 | B73: =B72+1 -> 4 | C73: =C72+1 -> 2
A74: 3
A75: Summe:
A78: Name, Vorname | H78: =H69+1 -> 10
A79: Verein:
A80: Serie | B80: Tisch | C80: Platz | D80: Spielpunkte | E80: gew. | F80: ver.. | G80: v.G. | H80: Gesamtpunkte
A81: 1 | B81: =B47+1 -> 3 | C81: =C72+1 -> 2
A82: 2 | B82: =B81+2 -> 5 | C82: =C73+1 -> 3
A83: 3
A84: Summe:
A87: Name, Vorname | H87: =H78+1 -> 11
A88: Verein:
A89: Serie | B89: Tisch | C89: Platz | D89: Spielpunkte | E89: gew. | F89: ver.. | G89: v.G. | H89: Gesamtpunkte
A90: 1 | B90: =B56+1 -> 3 | C90: =C81+1 -> 3
A91: 2 | B91: =B90+3 -> 6 | C91: =C82+1 -> 4
A92: 3
A93: Summe:
A96: Name, Vorname | H96: =H87+1 -> 12
A97: Verein:
A98: Serie | B98: Tisch | C98: Platz | D98: Spielpunkte | E98: gew. | F98: ver.. | G98: v.G. | H98: Gesamtpunkte
A99: 1 | B99: =B65+1 -> 3 | C99: =C90+1 -> 4
A100: 2 | B100: =B99+5 -> 8 | C100: =C91-3 -> 1
A101: 3
A102: Summe:
A103: Name, Vorname | H103: =H96+1 -> 13
A104: Verein:
A105: Serie | B105: Tisch | C105: Platz | D105: Spielpunkte | E105: gew. | F105: ver.. | G105: v.G. | H105: Gesamtpunkte
A106: 1 | B106: =B72+1 -> 4 | C106: =C4 -> 1
A107: 2 | B107: =B106+1 -> 5 | C107: =C106+1 -> 2
A108: 3
A109: Summe:
A112: Name, Vorname | H112: =H103+1 -> 14
A113: Verein:
A114: Serie | B114: Tisch | C114: Platz | D114: Spielpunkte | E114: gew. | F114: ver.. | G114: v.G. | H114: Gesamtpunkte
A115: 1 | B115: =B81+1 -> 4 | C115: =C106+1 -> 2
A116: 2 | B116: =B115+2 -> 6 | C116: =C107+1 -> 3
A117: 3
A118: Summe:
A121: Name, Vorname | H121: =H112+1 -> 15
A122: Verein:
A123: Serie | B123: Tisch | C123: Platz | D123: Spielpunkte | E123: gew. | F123: ver.. | G123: v.G. | H123: Gesamtpunkte
A124: 1 | B124: =B90+1 -> 4 | C124: =C115+1 -> 3
A125: 2 | B125: =B124+3 -> 7 | C125: =C116+1 -> 4
A126: 3
A127: Summe:
A130: Name, Vorname | H130: =H121+1 -> 16
A131: Verein:
A132: Serie | B132: Tisch | C132: Platz | D132: Spielpunkte | E132: gew. | F132: ver.. | G132: v.G. | H132: Gesamtpunkte
A133: 1 | B133: =B99+1 -> 4 | C133: =C124+1 -> 4
A134: 2 | B134: =B133+5 -> 9 | C134: =C125-3 -> 1
A135: 3
A136: Summe:

Sheet StaKa E 3 S.
A1: Name, Vorname | H1: =I4 -> 1 | J1: Auf Druckeinstellung achten!
A2: Verein: | J2: Ob eine oder 2 Seiten je Blatt!
A3: Serie | B3: Tisch | C3: Platz | D3: Spielpunkte | E3: gew. | F3: ver.. | G3: v.G. | H3: Gesamtpunkte | J3: Achtung! Hier nur 48 Spieler!
A4: 1 | B4: =I6 -> 1 | C4: 1 | I4: 1 | J4: nächster Spieler dann 49, 97, 145 usw.
A5: 2 | B5: =B4+C4 -> 2 | C5: =C4+1 -> 2 | J5: Den Tisch jeweils um 12 erhöhen!
A6: 3 | B6: =B5+C5 -> 4 | C6: =C5+1 -> 3 | I6: 1 | J6: nächster Tisch dann 13, 25, 37 usw.
A7: Summe:
A8: zur 2.Serie: 1 Tisch +1 Platz weiter (opt. zur 3. Serie: 2 Tische +1 Platz weiter)
A10: Name, Vorname | H10: =H1+1 -> 2
A11: Verein:
A12: Serie | B12: Tisch | C12: Platz | D12: Spielpunkte | E12: gew. | F12: ver.. | G12: v.G. | H12: Gesamtpunkte
A13: 1 | B13: =B4 -> 1 | C13: =C4+1 -> 2
A14: 2 | B14: =B13+C13 -> 3 | C14: =C13+1 -> 3
A15: 3 | B15: =B14+C14 -> 6 | C15: =C14+1 -> 4
A16: Summe:
A17: zur 2.Serie: 2 Tische +1 Platz weiter (opt. zur 3. Serie: 3 Tische +1 Platz weiter)
A19: Name, Vorname | H19: =H10+1 -> 3
A20: Verein:
A21: Serie | B21: Tisch | C21: Platz | D21: Spielpunkte | E21: gew. | F21: ver.. | G21: v.G. | H21: Gesamtpunkte
A22: 1 | B22: =B4 -> 1 | C22: =C13+1 -> 3
A23: 2 | B23: =B22+C22 -> 4 | C23: =C22+1 -> 4
A24: 3 | B24: =B23+C23+1 -> 9 | C24: =C23-3 -> 1
A25: Summe:
A26: zur 2.Serie: 3 Tische +1 Platz weiter (opt. zur 3. Serie: 4 Tische +1 Platz weiter)
A27: zur 2.Serie: 4 Tische +1 Platz weiter (opt. zur 3. Serie: 1 Tisch 1 Platz weiter)
A28: Name, Vorname | H28: =H19+1 -> 4
A29: Verein:
A30: Serie | B30: Tisch | C30: Platz | D30: Spielpunkte | E30: gew. | F30: ver.. | G30: v.G. | H30: Gesamtpunkte
A31: 1 | B31: =B4 -> 1 | C31: =C22+1 -> 4
A32: 2 | B32: =B31+C31+1 -> 6 | C32: =C31-3 -> 1
A33: 3 | B33: =B32+C32 -> 7 | C33: =C32+1 -> 2
A34: Summe:
A35: Name, Vorname | H35: =H28+1 -> 5
A36: Verein:
A37: Serie | B37: Tisch | C37: Platz | D37: Spielpunkte | E37: gew. | F37: ver.. | G37: v.G. | H37: Gesamtpunkte
A38: 1 | B38: =B4+1 -> 2 | C38: =C4 -> 1
A39: 2 | B39: =B38+C38 -> 3 | C39: =C38+1 -> 2
A40: 3 | B40: =B39+C39 -> 5 | C40: =C39+1 -> 3
A41: Summe:
A42: zur 2.Serie: 1 Tisch +1 Platz weiter (opt. zur 3. Serie: 2 Tische +1 Platz weiter)
A44: Name, Vorname | H44: =H35+1 -> 6
A45: Verein:
A46: Serie | B46: Tisch | C46: Platz | D46: Spielpunkte | E46: gew. | F46: ver.. | G46: v.G. | H46: Gesamtpunkte
A47: 1 | B47: =B38 -> 2 | C47: =C38+1 -> 2
A48: 2 | B48: =B47+C47 -> 4 | C48: =C47+1 -> 3
A49: 3 | B49: =B48+C48 -> 7 | C49: =C48+1 -> 4
A50: Summe:
A51: zur 2.Serie: 2 Tische +1 Platz weiter (opt. zur 3. Serie: 3 Tische +1 Platz weiter)
A53: Name, Vorname | H53: =H44+1 -> 7
A54: Verein:
A55: Serie | B55: Tisch | C55: Platz | D55: Spielpunkte | E55: gew. | F55: ver.. | G55: v.G. | H55: Gesamtpunkte
A56: 1 | B56: =B38 -> 2 | C56: =C47+1 -> 3
A57: 2 | B57: =B56+C56 -> 5 | C57: =C56+1 -> 4
A58: 3 | B58: =B57+C57+1 -> 10 | C58: =C57-3 -> 1
A59: Summe:
A60: zur 2.Serie: 3 Tische +1 Platz weiter (opt. zur 3. Serie: 4 Tische +1 Platz weiter)
A61: zur 2.Serie: 4 Tische +1 Platz weiter (opt. zur 3. Serie: 1 Tisch 1 Platz weiter)
A62: Name, Vorname | H62: =H53+1 -> 8
A63: Verein:
A64: Serie | B64: Tisch | C64: Platz | D64: Spielpunkte | E64: gew. | F64: ver.. | G64: v.G. | H64: Gesamtpunkte
A65: 1 | B65: =B38 -> 2 | C65: =C56+1 -> 4
A66: 2 | B66: =B65+C65+1 -> 7 | C66: =C65-3 -> 1
A67: 3 | B67: =B66+C66 -> 8 | C67: =C66+1 -> 2
A68: Summe:
A69: Name, Vorname | H69: =H62+1 -> 9
A70: Verein:
A71: Serie | B71: Tisch | C71: Platz | D71: Spielpunkte | E71: gew. | F71: ver.. | G71: v.G. | H71: Gesamtpunkte
A72: 1 | B72: =B38+1 -> 3 | C72: =C38 -> 1
A73: 2 | B73: =B72+C72 -> 4 | C73: =C72+1 -> 2
A74: 3 | B74: =B73+C73 -> 6 | C74: =C73+1 -> 3
A75: Summe:
A76: zur 2.Serie: 1 Tisch +1 Platz weiter (opt. zur 3. Serie: 2 Tische +1 Platz weiter)
A78: Name, Vorname | H78: =H69+1 -> 10
A79: Verein:
A80: Serie | B80: Tisch | C80: Platz | D80: Spielpunkte | E80: gew. | F80: ver.. | G80: v.G. | H80: Gesamtpunkte
A81: 1 | B81: =B72 -> 3 | C81: =C72+1 -> 2
A82: 2 | B82: =B81+C81 -> 5 | C82: =C81+1 -> 3
A83: 3 | B83: =B82+C82 -> 8 | C83: =C82+1 -> 4
A84: Summe:
A85: zur 2.Serie: 2 Tische +1 Platz weiter (opt. zur 3. Serie: 3 Tische +1 Platz weiter)
A87: Name, Vorname | H87: =H78+1 -> 11
A88: Verein:
A89: Serie | B89: Tisch | C89: Platz | D89: Spielpunkte | E89: gew. | F89: ver.. | G89: v.G. | H89: Gesamtpunkte
A90: 1 | B90: =B72 -> 3 | C90: =C81+1 -> 3
A91: 2 | B91: =B90+C90 -> 6 | C91: =C90+1 -> 4
A92: 3 | B92: =B91+C91+1 -> 11 | C92: =C91-3 -> 1
A93: Summe:
A94: zur 2.Serie: 3 Tische +1 Platz weiter (opt. zur 3. Serie: 4 Tische +1 Platz weiter)
A95: zur 2.Serie: 4 Tische +1 Platz weiter (opt. zur 3. Serie: 1 Tisch 1 Platz weiter)
A96: Name, Vorname | H96: =H87+1 -> 12
A97: Verein:
A98: Serie | B98: Tisch | C98: Platz | D98: Spielpunkte | E98: gew. | F98: ver.. | G98: v.G. | H98: Gesamtpunkte
A99: 1 | B99: =B72 -> 3 | C99: =C90+1 -> 4
A100: 2 | B100: =B99+C99+1 -> 8 | C100: =C99-3 -> 1
A101: 3 | B101: =B100+C100 -> 9 | C101: =C100+1 -> 2
A102: Summe:
A103: Name, Vorname | H103: =H96+1 -> 13
A104: Verein:
A105: Serie | B105: Tisch | C105: Platz | D105: Spielpunkte | E105: gew. | F105: ver.. | G105: v.G. | H105: Gesamtpunkte
A106: 1 | B106: =B72+1 -> 4 | C106: =C72 -> 1
A107: 2 | B107: =B106+C106 -> 5 | C107: =C106+1 -> 2
A108: 3 | B108: =B107+C107 -> 7 | C108: =C107+1 -> 3
A109: Summe:
A110: zur 2.Serie: 1 Tisch +1 Platz weiter (opt. zur 3. Serie: 2 Tische +1 Platz weiter)
A112: Name, Vorname | H112: =H103+1 -> 14
A113: Verein:
A114: Serie | B114: Tisch | C114: Platz | D114: Spielpunkte | E114: gew. | F114: ver.. | G114: v.G. | H114: Gesamtpunkte
A115: 1 | B115: =B106 -> 4 | C115: =C106+1 -> 2
A116: 2 | B116: =B115+C115 -> 6 | C116: =C115+1 -> 3
A117: 3 | B117: =B116+C116 -> 9 | C117: =C116+1 -> 4
A118: Summe:
A119: zur 2.Serie: 2 Tische +1 Platz weiter (opt. zur 3. Serie: 3 Tische +1 Platz weiter)
A121: Name, Vorname | H121: =H112+1 -> 15
A122: Verein:
A123: Serie | B123: Tisch | C123: Platz | D123: Spielpunkte | E123: gew. | F123: ver.. | G123: v.G. | H123: Gesamtpunkte
A124: 1 | B124: =B106 -> 4 | C124: =C115+1 -> 3
A125: 2 | B125: =B124+C124 -> 7 | C125: =C124+1 -> 4
A126: 3 | B126: =B125+C125+1 -> 12 | C126: =C125-3 -> 1
A127: Summe:
A128: zur 2.Serie: 3 Tische +1 Platz weiter (opt. zur 3. Serie: 4 Tische +1 Platz weiter)
A129: zur 2.Serie: 4 Tische +1 Platz weiter (opt. zur 3. Serie: 1 Tisch 1 Platz weiter)
A130: Name, Vorname | H130: =H121+1 -> 16
A131: Verein:
A132: Serie | B132: Tisch | C132: Platz | D132: Spielpunkte | E132: gew. | F132: ver.. | G132: v.G. | H132: Gesamtpunkte
A133: 1 | B133: =B106 -> 4 | C133: =C124+1 -> 4
A134: 2 | B134: =B133+C133+1 -> 9 | C134: =C133-3 -> 1
A135: 3 | B135: =B134+C134 -> 10 | C135: =C134+1 -> 2
A136: Summe:
A137: Name, Vorname | H137: =H130+1 -> 17
A138: Verein:
A139: Serie | B139: Tisch | C139: Platz | D139: Spielpunkte | E139: gew. | F139: ver.. | G139: v.G. | H139: Gesamtpunkte
A140: 1 | B140: =B106+1 -> 5 | C140: =C106 -> 1
A141: 2 | B141: =B140+C140 -> 6 | C141: =C140+1 -> 2
A142: 3 | B142: =B141+C141 -> 8 | C142: =C141+1 -> 3
A143: Summe:
A144: zur 2.Serie: 1 Tisch +1 Platz weiter (opt. zur 3. Serie: 2 Tische +1 Platz weiter)
A146: Name, Vorname | H146: =H137+1 -> 18
A147: Verein:
A148: Serie | B148: Tisch | C148: Platz | D148: Spielpunkte | E148: gew. | F148: ver.. | G148: v.G. | H148: Gesamtpunkte
A149: 1 | B149: =B140 -> 5 | C149: =C140+1 -> 2
A150: 2 | B150: =B149+C149 -> 7 | C150: =C149+1 -> 3
A151: 3 | B151: =B150+C150 -> 10 | C151: =C150+1 -> 4
A152: Summe:
A153: zur 2.Serie: 2 Tische +1 Platz weiter (opt. zur 3. Serie: 3 Tische +1 Platz weiter)
A155: Name, Vorname | H155: =H146+1 -> 19
A156: Verein:
A157: Serie | B157: Tisch | C157: Platz | D157: Spielpunkte | E157: gew. | F157: ver.. | G157: v.G. | H157: Gesamtpunkte
A158: 1 | B158: =B140 -> 5 | C158: =C149+1 -> 3
A159: 2 | B159: =B158+C158 -> 8 | C159: =C158+1 -> 4
A160: 3 | B160: =B159+C159+1 -> 13 | C160: =C159-3 -> 1
A161: Summe:
A162: zur 2.Serie: 3 Tische +1 Platz weiter (opt. zur 3. Serie: 4 Tische +1 Platz weiter)
A163: zur 2.Serie: 4 Tische +1 Platz weiter (opt. zur 3. Serie: 1 Tisch 1 Platz weiter)
A164: Name, Vorname | H164: =H155+1 -> 20
A165: Verein:
A166: Serie | B166: Tisch | C166: Platz | D166: Spielpunkte | E166: gew. | F166: ver.. | G166: v.G. | H166: Gesamtpunkte
A167: 1 | B167: =B140 -> 5 | C167: =C158+1 -> 4
A168: 2 | B168: =B167+C167+1 -> 10 | C168: =C167-3 -> 1
A169: 3 | B169: =B168+C168 -> 11 | C169: =C168+1 -> 2
A170: Summe:
A171: Name, Vorname | H171: =H164+1 -> 21
A172: Verein:
A173: Serie | B173: Tisch | C173: Platz | D173: Spielpunkte | E173: gew. | F173: ver.. | G173: v.G. | H173: Gesamtpunkte
A174: 1 | B174: =B140+1 -> 6 | C174: =C140 -> 1
A175: 2 | B175: =B174+C174 -> 7 | C175: =C174+1 -> 2
A176: 3 | B176: =B175+C175 -> 9 | C176: =C175+1 -> 3
A177: Summe:
A178: zur 2.Serie: 1 Tisch +1 Platz weiter (opt. zur 3. Serie: 2 Tische +1 Platz weiter)
A180: Name, Vorname | H180: =H171+1 -> 22
A181: Verein:
A182: Serie | B182: Tisch | C182: Platz | D182: Spielpunkte | E182: gew. | F182: ver.. | G182: v.G. | H182: Gesamtpunkte
A183: 1 | B183: =B174 -> 6 | C183: =C174+1 -> 2
A184: 2 | B184: =B183+C183 -> 8 | C184: =C183+1 -> 3
A185: 3 | B185: =B184+C184 -> 11 | C185: =C184+1 -> 4
A186: Summe:
A187: zur 2.Serie: 2 Tische +1 Platz weiter (opt. zur 3. Serie: 3 Tische +1 Platz weiter)
A189: Name, Vorname | H189: =H180+1 -> 23
A190: Verein:
A191: Serie | B191: Tisch | C191: Platz | D191: Spielpunkte | E191: gew. | F191: ver.. | G191: v.G. | H191: Gesamtpunkte
A192: 1 | B192: =B174 -> 6 | C192: =C183+1 -> 3
A193: 2 | B193: =B192+C192 -> 9 | C193: =C192+1 -> 4
A194: 3 | B194: =B193+C193+1 -> 14 | C194: =C193-3 -> 1
A195: Summe:
A196: zur 2.Serie: 3 Tische +1 Platz weiter (opt. zur 3. Serie: 4 Tische +1 Platz weiter)
A197: zur 2.Serie: 4 Tische +1 Platz weiter (opt. zur 3. Serie: 1 Tisch 1 Platz weiter)
A198: Name, Vorname | H198: =H189+1 -> 24
A199: Verein:
A200: Serie | B200: Tisch | C200: Platz | D200: Spielpunkte | E200: gew. | F200: ver.. | G200: v.G. | H200: Gesamtpunkte
A201: 1 | B201: =B174 -> 6 | C201: =C192+1 -> 4
A202: 2 | B202: =B201+C201+1 -> 11 | C202: =C201-3 -> 1
A203: 3 | B203: =B202+C202 -> 12 | C203: =C202+1 -> 2
A204: Summe:
A205: Name, Vorname | H205: =H198+1 -> 25
A206: Verein:
A207: Serie | B207: Tisch | C207: Platz | D207: Spielpunkte | E207: gew. | F207: ver.. | G207: v.G. | H207: Gesamtpunkte
A208: 1 | B208: =B174+1 -> 7 | C208: =C174 -> 1
A209: 2 | B209: =B208+C208 -> 8 | C209: =C208+1 -> 2
A210: 3 | B210: =B209+C209 -> 10 | C210: =C209+1 -> 3
A211: Summe:
A212: zur 2.Serie: 1 Tisch +1 Platz weiter (opt. zur 3. Serie: 2 Tische +1 Platz weiter)
... 184 more rows

Sheet StaKa T 2 S.
A1: Tandem: | M1: 1 | O1: 8 | P1: Auf Druckeinstellung achten!
A2: Verein: | P2: Ob eine oder 2 Seiten je Blatt!
A3: Name, Vorname | F3: Start- Nr.: | I3: 1. Serie: | K3: 2. Serie: | M3: Gesamt:
F7: Spielpunkte:
K8: Gesamtpunkte:
A11: Tandem: | M11: =M1+O1 -> 9
A12: Verein:
A13: Name, Vorname | F13: Start- Nr.: | I13: 1. Serie: | K13: 2. Serie: | M13: Gesamt:
F17: Spielpunkte:
K18: Gesamtpunkte:
A21: Tandem: | M21: =M1+2*O1 -> 17
A22: Verein:
A23: Name, Vorname | F23: Start- Nr.: | I23: 1. Serie: | K23: 2. Serie: | M23: Gesamt:
F27: Spielpunkte:
K28: Gesamtpunkte:
A29: Tandem: | M29: =M1+1 -> 2
A30: Verein:
A31: Name, Vorname | F31: Start- Nr.: | I31: 1. Serie: | K31: 2. Serie: | M31: Gesamt:
F35: Spielpunkte:
K36: Gesamtpunkte:
A39: Tandem: | M39: =M11+1 -> 10
A40: Verein:
A41: Name, Vorname | F41: Start- Nr.: | I41: 1. Serie: | K41: 2. Serie: | M41: Gesamt:
F45: Spielpunkte:
K46: Gesamtpunkte:
A49: Tandem: | M49: =M21+1 -> 18
A50: Verein:
A51: Name, Vorname | F51: Start- Nr.: | I51: 1. Serie: | K51: 2. Serie: | M51: Gesamt:
F55: Spielpunkte:
K56: Gesamtpunkte:
A57: Tandem: | M57: =M29+1 -> 3
A58: Verein:
A59: Name, Vorname | F59: Start- Nr.: | I59: 1. Serie: | K59: 2. Serie: | M59: Gesamt:
F63: Spielpunkte:
K64: Gesamtpunkte:
A67: Tandem: | M67: =M39+1 -> 11
A68: Verein:
A69: Name, Vorname | F69: Start- Nr.: | I69: 1. Serie: | K69: 2. Serie: | M69: Gesamt:
F73: Spielpunkte:
K74: Gesamtpunkte:
A77: Tandem: | M77: =M49+1 -> 19
A78: Verein:
A79: Name, Vorname | F79: Start- Nr.: | I79: 1. Serie: | K79: 2. Serie: | M79: Gesamt:
F83: Spielpunkte:
K84: Gesamtpunkte:
A85: Tandem: | M85: =M57+1 -> 4
A86: Verein:
A87: Name, Vorname | F87: Start- Nr.: | I87: 1. Serie: | K87: 2. Serie: | M87: Gesamt:
F91: Spielpunkte:
K92: Gesamtpunkte:
A95: Tandem: | M95: =M67+1 -> 12
A96: Verein:
A97: Name, Vorname | F97: Start- Nr.: | I97: 1. Serie: | K97: 2. Serie: | M97: Gesamt:
F101: Spielpunkte:
K102: Gesamtpunkte:
A105: Tandem: | M105: =M77+1 -> 20
A106: Verein:
A107: Name, Vorname | F107: Start- Nr.: | I107: 1. Serie: | K107: 2. Serie: | M107: Gesamt:
F111: Spielpunkte:
K112: Gesamtpunkte:
A113: Tandem: | M113: =M85+1 -> 5
A114: Verein:
A115: Name, Vorname | F115: Start- Nr.: | I115: 1. Serie: | K115: 2. Serie: | M115: Gesamt:
F119: Spielpunkte:
K120: Gesamtpunkte:
A123: Tandem: | M123: =M95+1 -> 13
A124: Verein:
A125: Name, Vorname | F125: Start- Nr.: | I125: 1. Serie: | K125: 2. Serie: | M125: Gesamt:
F129: Spielpunkte:
K130: Gesamtpunkte:
A133: Tandem: | M133: =M105+1 -> 21
A134: Verein:
A135: Name, Vorname | F135: Start- Nr.: | I135: 1. Serie: | K135: 2. Serie: | M135: Gesamt:
F139: Spielpunkte:
K140: Gesamtpunkte:
A141: Tandem: | M141: =M113+1 -> 6
A142: Verein:
A143: Name, Vorname | F143: Start- Nr.: | I143: 1. Serie: | K143: 2. Serie: | M143: Gesamt:
F147: Spielpunkte:
K148: Gesamtpunkte:
A151: Tandem: | M151: =M123+1 -> 14
A152: Verein:
A153: Name, Vorname | F153: Start- Nr.: | I153: 1. Serie: | K153: 2. Serie: | M153: Gesamt:
F157: Spielpunkte:
K158: Gesamtpunkte:
A161: Tandem: | M161: =M133+1 -> 22
A162: Verein:
A163: Name, Vorname | F163: Start- Nr.: | I163: 1. Serie: | K163: 2. Serie: | M163: Gesamt:
F167: Spielpunkte:
K168: Gesamtpunkte:
A169: Tandem: | M169: =M141+1 -> 7
A170: Verein:
A171: Name, Vorname | F171: Start- Nr.: | I171: 1. Serie: | K171: 2. Serie: | M171: Gesamt:
F175: Spielpunkte:
K176: Gesamtpunkte:
A179: Tandem: | M179: =M151+1 -> 15
A180: Verein:
A181: Name, Vorname | F181: Start- Nr.: | I181: 1. Serie: | K181: 2. Serie: | M181: Gesamt:
F185: Spielpunkte:
K186: Gesamtpunkte:
A189: Tandem: | M189: =M161+1 -> 23
A190: Verein:
A191: Name, Vorname | F191: Start- Nr.: | I191: 1. Serie: | K191: 2. Serie: | M191: Gesamt:
F195: Spielpunkte:
K196: Gesamtpunkte:
A197: Tandem: | M197: =M169+1 -> 8
A198: Verein:
A199: Name, Vorname | F199: Start- Nr.: | I199: 1. Serie: | K199: 2. Serie: | M199: Gesamt:
F203: Spielpunkte:
K204: Gesamtpunkte:
A207: Tandem: | M207: =M179+1 -> 16
A208: Verein:
A209: Name, Vorname | F209: Start- Nr.: | I209: 1. Serie: | K209: 2. Serie: | M209: Gesamt:
F213: Spielpunkte:
K214: Gesamtpunkte:
A217: Tandem: | M217: =M189+1 -> 24
A218: Verein:
A219: Name, Vorname | F219: Start- Nr.: | I219: 1. Serie: | K219: 2. Serie: | M219: Gesamt:
F223: Spielpunkte:
K224: Gesamtpunkte:

Sheet StaKa Mi 2 S. (2)
A1: Mixed: | M1: 1 | O1: 8 | P1: Auf Druckeinstellung achten!
A2: Verein: | P2: Ob eine oder 2 Seiten je Blatt!
A3: Name, Vorname | F3: Start- Nr.: | I3: 1. Serie: | K3: 2. Serie: | M3: Gesamt:
F7: Spielpunkte:
K8: Gesamtpunkte:
A11: Mixed: | M11: =M1+O1 -> 9
A12: Verein:
A13: Name, Vorname | F13: Start- Nr.: | I13: 1. Serie: | K13: 2. Serie: | M13: Gesamt:
F17: Spielpunkte:
K18: Gesamtpunkte:
A21: Mixed: | M21: =M1+2*O1 -> 17
A22: Verein:
A23: Name, Vorname | F23: Start- Nr.: | I23: 1. Serie: | K23: 2. Serie: | M23: Gesamt:
F27: Spielpunkte:
K28: Gesamtpunkte:
A29: Mixed: | M29: =M1+1 -> 2
A30: Verein:
A31: Name, Vorname | F31: Start- Nr.: | I31: 1. Serie: | K31: 2. Serie: | M31: Gesamt:
F35: Spielpunkte:
K36: Gesamtpunkte:
A39: Mixed: | M39: =M11+1 -> 10
A40: Verein:
A41: Name, Vorname | F41: Start- Nr.: | I41: 1. Serie: | K41: 2. Serie: | M41: Gesamt:
F45: Spielpunkte:
K46: Gesamtpunkte:
A49: Mixed: | M49: =M21+1 -> 18
A50: Verein:
A51: Name, Vorname | F51: Start- Nr.: | I51: 1. Serie: | K51: 2. Serie: | M51: Gesamt:
F55: Spielpunkte:
K56: Gesamtpunkte:
A57: Mixed: | M57: =M29+1 -> 3
A58: Verein:
A59: Name, Vorname | F59: Start- Nr.: | I59: 1. Serie: | K59: 2. Serie: | M59: Gesamt:
F63: Spielpunkte:
K64: Gesamtpunkte:
A67: Mixed: | M67: =M39+1 -> 11
A68: Verein:
A69: Name, Vorname | F69: Start- Nr.: | I69: 1. Serie: | K69: 2. Serie: | M69: Gesamt:
F73: Spielpunkte:
K74: Gesamtpunkte:
A77: Mixed: | M77: =M49+1 -> 19
A78: Verein:
A79: Name, Vorname | F79: Start- Nr.: | I79: 1. Serie: | K79: 2. Serie: | M79: Gesamt:
F83: Spielpunkte:
K84: Gesamtpunkte:
A85: Mixed: | M85: =M57+1 -> 4
A86: Verein:
A87: Name, Vorname | F87: Start- Nr.: | I87: 1. Serie: | K87: 2. Serie: | M87: Gesamt:
F91: Spielpunkte:
K92: Gesamtpunkte:
A95: Mixed: | M95: =M67+1 -> 12
A96: Verein:
A97: Name, Vorname | F97: Start- Nr.: | I97: 1. Serie: | K97: 2. Serie: | M97: Gesamt:
F101: Spielpunkte:
K102: Gesamtpunkte:
A105: Mixed: | M105: =M77+1 -> 20
A106: Verein:
A107: Name, Vorname | F107: Start- Nr.: | I107: 1. Serie: | K107: 2. Serie: | M107: Gesamt:
F111: Spielpunkte:
K112: Gesamtpunkte:
A113: Mixed: | M113: =M85+1 -> 5
A114: Verein:
A115: Name, Vorname | F115: Start- Nr.: | I115: 1. Serie: | K115: 2. Serie: | M115: Gesamt:
F119: Spielpunkte:
K120: Gesamtpunkte:
A123: Mixed: | M123: =M95+1 -> 13
A124: Verein:
A125: Name, Vorname | F125: Start- Nr.: | I125: 1. Serie: | K125: 2. Serie: | M125: Gesamt:
F129: Spielpunkte:
K130: Gesamtpunkte:
A133: Mixed: | M133: =M105+1 -> 21
A134: Verein:
A135: Name, Vorname | F135: Start- Nr.: | I135: 1. Serie: | K135: 2. Serie: | M135: Gesamt:
F139: Spielpunkte:
K140: Gesamtpunkte:
A141: Mixed: | M141: =M113+1 -> 6
A142: Verein:
A143: Name, Vorname | F143: Start- Nr.: | I143: 1. Serie: | K143: 2. Serie: | M143: Gesamt:
F147: Spielpunkte:
K148: Gesamtpunkte:
A151: Mixed: | M151: =M123+1 -> 14
A152: Verein:
A153: Name, Vorname | F153: Start- Nr.: | I153: 1. Serie: | K153: 2. Serie: | M153: Gesamt:
F157: Spielpunkte:
K158: Gesamtpunkte:
A161: Mixed: | M161: =M133+1 -> 22
A162: Verein:
A163: Name, Vorname | F163: Start- Nr.: | I163: 1. Serie: | K163: 2. Serie: | M163: Gesamt:
F167: Spielpunkte:
K168: Gesamtpunkte:
A169: Mixed: | M169: =M141+1 -> 7
A170: Verein:
A171: Name, Vorname | F171: Start- Nr.: | I171: 1. Serie: | K171: 2. Serie: | M171: Gesamt:
F175: Spielpunkte:
K176: Gesamtpunkte:
A179: Mixed: | M179: =M151+1 -> 15
A180: Verein:
A181: Name, Vorname | F181: Start- Nr.: | I181: 1. Serie: | K181: 2. Serie: | M181: Gesamt:
F185: Spielpunkte:
K186: Gesamtpunkte:
A189: Mixed: | M189: =M161+1 -> 23
A190: Verein:
A191: Name, Vorname | F191: Start- Nr.: | I191: 1. Serie: | K191: 2. Serie: | M191: Gesamt:
F195: Spielpunkte:
K196: Gesamtpunkte:
A197: Mixed: | M197: =M169+1 -> 8
A198: Verein:
A199: Name, Vorname | F199: Start- Nr.: | I199: 1. Serie: | K199: 2. Serie: | M199: Gesamt:
F203: Spielpunkte:
K204: Gesamtpunkte:
A207: Mixed: | M207: =M179+1 -> 16
A208: Verein:
A209: Name, Vorname | F209: Start- Nr.: | I209: 1. Serie: | K209: 2. Serie: | M209: Gesamt:
F213: Spielpunkte:
K214: Gesamtpunkte:
A217: Mixed: | M217: =M189+1 -> 24
A218: Verein:
A219: Name, Vorname | F219: Start- Nr.: | I219: 1. Serie: | K219: 2. Serie: | M219: Gesamt:
F223: Spielpunkte:
K224: Gesamtpunkte:

Sheet StaKa Ma 2 S.
A1: Mannschaft: | M1: 1 | O1: 12 | P1: Auf Druckeinstellung achten!
A2: Verein: | P2: Ob eine oder 2 Seiten je Blatt!
A3: Adresse:
A4: Name, Vorname | F4: Start- Nr.: | I4: 1. Serie: | K4: 2. Serie: | M4: Gesamt:
F10: Spielpunkte:
F11: Gesamtspielpunkte:
K12: Gesamtpunkte:
A15: Mannschaft: | M15: =M1+O1 -> 13
A16: Verein:
A17: Adresse:
A18: Name, Vorname | F18: Start- Nr.: | I18: 1. Serie: | K18: 2. Serie: | M18: Gesamt:
F24: Spielpunkte:
F25: Gesamtspielpunkte:
K26: Gesamtpunkte:
A27: Mannschaft: | M27: =M1+1 -> 2
A28: Verein:
A29: Adresse:
A30: Name, Vorname | F30: Start- Nr.: | I30: 1. Serie: | K30: 2. Serie: | M30: Gesamt:
F36: Spielpunkte:
F37: Gesamtspielpunkte:
K38: Gesamtpunkte:
A41: Mannschaft: | M41: =M27+O1 -> 14
A42: Verein:
A43: Adresse:
A44: Name, Vorname | F44: Start- Nr.: | I44: 1. Serie: | K44: 2. Serie: | M44: Gesamt:
F50: Spielpunkte:
F51: Gesamtspielpunkte:
K52: Gesamtpunkte:
A53: Mannschaft: | M53: =M27+1 -> 3
A54: Verein:
A55: Adresse:
A56: Name, Vorname | F56: Start- Nr.: | I56: 1. Serie: | K56: 2. Serie: | M56: Gesamt:
F62: Spielpunkte:
F63: Gesamtspielpunkte:
K64: Gesamtpunkte:
A67: Mannschaft: | M67: =M53+O1 -> 15
A68: Verein:
A69: Adresse:
A70: Name, Vorname | F70: Start- Nr.: | I70: 1. Serie: | K70: 2. Serie: | M70: Gesamt:
F76: Spielpunkte:
F77: Gesamtspielpunkte:
K78: Gesamtpunkte:
A79: Mannschaft: | M79: =M53+1 -> 4
A80: Verein:
A81: Adresse:
A82: Name, Vorname | F82: Start- Nr.: | I82: 1. Serie: | K82: 2. Serie: | M82: Gesamt:
F88: Spielpunkte:
F89: Gesamtspielpunkte:
K90: Gesamtpunkte:
A93: Mannschaft: | M93: =M79+O1 -> 16
A94: Verein:
A95: Adresse:
A96: Name, Vorname | F96: Start- Nr.: | I96: 1. Serie: | K96: 2. Serie: | M96: Gesamt:
F102: Spielpunkte:
F103: Gesamtspielpunkte:
K104: Gesamtpunkte:
A105: Mannschaft: | M105: =M79+1 -> 5
A106: Verein:
A107: Adresse:
A108: Name, Vorname | F108: Start- Nr.: | I108: 1. Serie: | K108: 2. Serie: | M108: Gesamt:
F114: Spielpunkte:
F115: Gesamtspielpunkte:
K116: Gesamtpunkte:
A119: Mannschaft: | M119: =M105+O1 -> 17
A120: Verein:
A121: Adresse:
A122: Name, Vorname | F122: Start- Nr.: | I122: 1. Serie: | K122: 2. Serie: | M122: Gesamt:
F128: Spielpunkte:
F129: Gesamtspielpunkte:
K130: Gesamtpunkte:
A131: Mannschaft: | M131: =M105+1 -> 6
A132: Verein:
A133: Adresse:
A134: Name, Vorname | F134: Start- Nr.: | I134: 1. Serie: | K134: 2. Serie: | M134: Gesamt:
F140: Spielpunkte:
F141: Gesamtspielpunkte:
K142: Gesamtpunkte:
A145: Mannschaft: | M145: =M131+O1 -> 18
A146: Verein:
A147: Adresse:
A148: Name, Vorname | F148: Start- Nr.: | I148: 1. Serie: | K148: 2. Serie: | M148: Gesamt:
F154: Spielpunkte:
F155: Gesamtspielpunkte:
K156: Gesamtpunkte:
A157: Mannschaft: | M157: =M131+1 -> 7
A158: Verein:
A159: Adresse:
A160: Name, Vorname | F160: Start- Nr.: | I160: 1. Serie: | K160: 2. Serie: | M160: Gesamt:
F166: Spielpunkte:
F167: Gesamtspielpunkte:
K168: Gesamtpunkte:
A171: Mannschaft: | M171: =M157+O1 -> 19
A172: Verein:
A173: Adresse:
A174: Name, Vorname | E174: Start- Nr.: | F174: Passnummer: | I174: 1. Serie: | K174: 2. Serie: | M174: Gesamt:
F180: Spielpunkte:
F181: Gesamtspielpunkte:
K182: Gesamtpunkte:
A183: Mannschaft: | M183: =M157+1 -> 8
A184: Verein:
A185: Adresse:
A186: Name, Vorname | F186: Start- Nr.: | I186: 1. Serie: | K186: 2. Serie: | M186: Gesamt:
F192: Spielpunkte:
F193: Gesamtspielpunkte:
K194: Gesamtpunkte:
A197: Mannschaft: | M197: =M183+O1 -> 20
A198: Verein:
A199: Adresse:
A200: Name, Vorname | F200: Start- Nr.: | I200: 1. Serie: | K200: 2. Serie: | M200: Gesamt:
F206: Spielpunkte:
F207: Gesamtspielpunkte:
K208: Gesamtpunkte:
A209: Mannschaft: | M209: =M183+1 -> 9
A210: Verein:
A211: Adresse:
A212: Name, Vorname | F212: Start- Nr.: | I212: 1. Serie: | K212: 2. Serie: | M212: Gesamt:
F218: Spielpunkte:
F219: Gesamtspielpunkte:
K220: Gesamtpunkte:
A223: Mannschaft: | M223: =M209+O1 -> 21
A224: Verein:
A225: Adresse:
A226: Name, Vorname | F226: Start- Nr.: | I226: 1. Serie: | K226: 2. Serie: | M226: Gesamt:
F232: Spielpunkte:
F233: Gesamtspielpunkte:
K234: Gesamtpunkte:
A235: Mannschaft: | M235: =M209+1 -> 10
A236: Verein:
A237: Adresse:
A238: Name, Vorname | F238: Start- Nr.: | I238: 1. Serie: | K238: 2. Serie: | M238: Gesamt:
F244: Spielpunkte:
F245: Gesamtspielpunkte:
K246: Gesamtpunkte:
A249: Mannschaft: | M249: =M235+O1 -> 22
A250: Verein:
A251: Adresse:
A252: Name, Vorname | F252: Start- Nr.: | I252: 1. Serie: | K252: 2. Serie: | M252: Gesamt:
F258: Spielpunkte:
F259: Gesamtspielpunkte:
K260: Gesamtpunkte:
A261: Mannschaft: | M261: =M235+1 -> 11
A262: Verein:
A263: Adresse:
A264: Name, Vorname | F264: Start- Nr.: | I264: 1. Serie: | K264: 2. Serie: | M264: Gesamt:
F270: Spielpunkte:
F271: Gesamtspielpunkte:
K272: Gesamtpunkte:
A275: Mannschaft: | M275: =M261+O1 -> 23
A276: Verein:
A277: Adresse:
A278: Name, Vorname | F278: Start- Nr.: | I278: 1. Serie: | K278: 2. Serie: | M278: Gesamt:
F284: Spielpunkte:
F285: Gesamtspielpunkte:
K286: Gesamtpunkte:
A287: Mannschaft: | M287: =M261+1 -> 12
A288: Verein:
A289: Adresse:
A290: Name, Vorname | F290: Start- Nr.: | I290: 1. Serie: | K290: 2. Serie: | M290: Gesamt:
F296: Spielpunkte:
F297: Gesamtspielpunkte:
K298: Gesamtpunkte:
A301: Mannschaft: | M301: =M287+O1 -> 24
A302: Verein:
A303: Adresse:
A304: Name, Vorname | F304: Start- Nr.: | I304: 1. Serie: | K304: 2. Serie: | M304: Gesamt:
F310: Spielpunkte:
F311: Gesamtspielpunkte:
K312: Gesamtpunkte:

Sheet StaKa E 2 S. (ohne 1.)
A1: Name, Vorname | H1: 1 | J1: Auf Druckeinstellung achten!
A2: Verein: | J2: Ob eine oder 2 Seiten je Blatt!
A3: Adresse: | J3: 64 Spieler, 1. Serie wird gelost
A4: Serie | B4: Tisch | C4: Platz | D4: Spielpunkte | E4: gew. | F4: ver.. | G4: v.G. | H4: Gesamtpunkte | J4: nächster Spieler dann 65, 129, 193 usw.
A5: 1 | J5: 2. Serie wird gesetzt
A6: 2 | J6: oder nach "Hinweis" weitergesetzt.
A7: Summe:
A10: Name, Vorname | H10: =H1+1 -> 2
A11: Verein:
A12: Adresse:
A13: Serie | B13: Tisch | C13: Platz | D13: Spielpunkte | E13: gew. | F13: ver.. | G13: v.G. | H13: Gesamtpunkte
A14: 1
A15: 2
A16: Summe:
A19: Name, Vorname | H19: =H10+1 -> 3
A20: Verein:
A21: Adresse:
A22: Serie | B22: Tisch | C22: Platz | D22: Spielpunkte | E22: gew. | F22: ver.. | G22: v.G. | H22: Gesamtpunkte
A23: 1
A24: 2
A25: Summe:
A28: Name, Vorname | H28: =H19+1 -> 4
A29: Verein:
A30: Adresse:
A31: Serie | B31: Tisch | C31: Platz | D31: Spielpunkte | E31: gew. | F31: ver.. | G31: v.G. | H31: Gesamtpunkte
A32: 1
A33: 2
A34: Summe:
A35: Name, Vorname | H35: =H28+1 -> 5
A36: Verein:
A37: Adresse:
A38: Serie | B38: Tisch | C38: Platz | D38: Spielpunkte | E38: gew. | F38: ver.. | G38: v.G. | H38: Gesamtpunkte
A39: 1
A40: 2
A41: Summe:
A44: Name, Vorname | H44: =H35+1 -> 6
A45: Verein:
A46: Adresse:
A47: Serie | B47: Tisch | C47: Platz | D47: Spielpunkte | E47: gew. | F47: ver.. | G47: v.G. | H47: Gesamtpunkte
A48: 1
A49: 2
A50: Summe:
A53: Name, Vorname | H53: =H44+1 -> 7
A54: Verein:
A55: Adresse:
A56: Serie | B56: Tisch | C56: Platz | D56: Spielpunkte | E56: gew. | F56: ver.. | G56: v.G. | H56: Gesamtpunkte
A57: 1 | B57: =B23+1 -> 1 | C57: =C48+1 -> 1
A58: 2
A59: Summe:
A62: Name, Vorname | H62: =H53+1 -> 8
A63: Verein:
A64: Adresse:
A65: Serie | B65: Tisch | C65: Platz | D65: Spielpunkte | E65: gew. | F65: ver.. | G65: v.G. | H65: Gesamtpunkte
A66: 1
A67: 2
A68: Summe:
A69: Name, Vorname | H69: =H62+1 -> 9
A70: Verein:
A71: Adresse:
A72: Serie | B72: Tisch | C72: Platz | D72: Spielpunkte | E72: gew. | F72: ver.. | G72: v.G. | H72: Gesamtpunkte
A73: 1
A74: 2
A75: Summe:
A78: Name, Vorname | H78: =H69+1 -> 10
A79: Verein:
A80: Adresse:
A81: Serie | B81: Tisch | C81: Platz | D81: Spielpunkte | E81: gew. | F81: ver.. | G81: v.G. | H81: Gesamtpunkte
A82: 1
A83: 2
A84: Summe:
A87: Name, Vorname | H87: =H78+1 -> 11
A88: Verein:
A89: Adresse:
A90: Serie | B90: Tisch | C90: Platz | D90: Spielpunkte | E90: gew. | F90: ver.. | G90: v.G. | H90: Gesamtpunkte
A91: 1
A92: 2
A93: Summe:
A96: Name, Vorname | H96: =H87+1 -> 12
A97: Verein:
A98: Adresse:
A99: Serie | B99: Tisch | C99: Platz | D99: Spielpunkte | E99: gew. | F99: ver.. | G99: v.G. | H99: Gesamtpunkte
A100: 1
A101: 2
A102: Summe:
A103: Name, Vorname | H103: =H96+1 -> 13
A104: Verein:
A105: Adresse:
A106: Serie | B106: Tisch | C106: Platz | D106: Spielpunkte | E106: gew. | F106: ver.. | G106: v.G. | H106: Gesamtpunkte
A107: 1
A108: 2
A109: Summe:
A112: Name, Vorname | H112: =H103+1 -> 14
A113: Verein:
A114: Adresse:
A115: Serie | B115: Tisch | C115: Platz | D115: Spielpunkte | E115: gew. | F115: ver.. | G115: v.G. | H115: Gesamtpunkte
A116: 1
A117: 2
A118: Summe:
A121: Name, Vorname | H121: =H112+1 -> 15
A122: Verein:
A123: Adresse:
A124: Serie | B124: Tisch | C124: Platz | D124: Spielpunkte | E124: gew. | F124: ver.. | G124: v.G. | H124: Gesamtpunkte
A125: 1
A126: 2
A127: Summe:
A130: Name, Vorname | H130: =H121+1 -> 16
A131: Verein:
A132: Adresse:
A133: Serie | B133: Tisch | C133: Platz | D133: Spielpunkte | E133: gew. | F133: ver.. | G133: v.G. | H133: Gesamtpunkte
A134: 1
A135: 2
A136: Summe:
A137: Name, Vorname | H137: =H130+1 -> 17
A138: Verein:
A139: Adresse:
A140: Serie | B140: Tisch | C140: Platz | D140: Spielpunkte | E140: gew. | F140: ver.. | G140: v.G. | H140: Gesamtpunkte
A141: 1
A142: 2
A143: Summe:
A146: Name, Vorname | H146: =H137+1 -> 18
A147: Verein:
A148: Adresse:
A149: Serie | B149: Tisch | C149: Platz | D149: Spielpunkte | E149: gew. | F149: ver.. | G149: v.G. | H149: Gesamtpunkte
A150: 1
A151: 2
A152: Summe:
A155: Name, Vorname | H155: =H146+1 -> 19
A156: Verein:
A157: Adresse:
A158: Serie | B158: Tisch | C158: Platz | D158: Spielpunkte | E158: gew. | F158: ver.. | G158: v.G. | H158: Gesamtpunkte
A159: 1
A160: 2
A161: Summe:
A164: Name, Vorname | H164: =H155+1 -> 20
A165: Verein:
A166: Adresse:
A167: Serie | B167: Tisch | C167: Platz | D167: Spielpunkte | E167: gew. | F167: ver.. | G167: v.G. | H167: Gesamtpunkte
A168: 1
A169: 2
A170: Summe:
A171: Name, Vorname | H171: =H164+1 -> 21
A172: Verein:
A173: Adresse:
A174: Serie | B174: Tisch | C174: Platz | D174: Spielpunkte | E174: gew. | F174: ver.. | G174: v.G. | H174: Gesamtpunkte
A175: 1
A176: 2
A177: Summe:
A180: Name, Vorname | H180: =H171+1 -> 22
A181: Verein:
A182: Adresse:
A183: Serie | B183: Tisch | C183: Platz | D183: Spielpunkte | E183: gew. | F183: ver.. | G183: v.G. | H183: Gesamtpunkte
A184: 1
A185: 2
A186: Summe:
A189: Name, Vorname | H189: =H180+1 -> 23
A190: Verein:
A191: Adresse:
A192: Serie | B192: Tisch | C192: Platz | D192: Spielpunkte | E192: gew. | F192: ver.. | G192: v.G. | H192: Gesamtpunkte
A193: 1
A194: 2
A195: Summe:
A198: Name, Vorname | H198: =H189+1 -> 24
A199: Verein:
A200: Adresse:
A201: Serie | B201: Tisch | C201: Platz | D201: Spielpunkte | E201: gew. | F201: ver.. | G201: v.G. | H201: Gesamtpunkte
A202: 1
A203: 2
A204: Summe:
A205: Name, Vorname | H205: =H198+1 -> 25
A206: Verein:
A207: Adresse:
A208: Serie | B208: Tisch | C208: Platz | D208: Spielpunkte | E208: gew. | F208: ver.. | G208: v.G. | H208: Gesamtpunkte
A209: 1
A210: 2
A211: Summe:
A214: Name, Vorname | H214: =H205+1 -> 26
A215: Verein:
A216: Adresse:
A217: Serie | B217: Tisch | C217: Platz | D217: Spielpunkte | E217: gew. | F217: ver.. | G217: v.G. | H217: Gesamtpunkte
A218: 1
A219: 2
A220: Summe:
A223: Name, Vorname | H223: =H214+1 -> 27
A224: Verein:
A225: Adresse:
A226: Serie | B226: Tisch | C226: Platz | D226: Spielpunkte | E226: gew. | F226: ver.. | G226: v.G. | H226: Gesamtpunkte
A227: 1
A228: 2
A229: Summe:
A232: Name, Vorname | H232: =H223+1 -> 28
A233: Verein:
A234: Adresse:
A235: Serie | B235: Tisch | C235: Platz | D235: Spielpunkte | E235: gew. | F235: ver.. | G235: v.G. | H235: Gesamtpunkte
A236: 1
A237: 2
A238: Summe:
A239: Name, Vorname | H239: =H232+1 -> 29
A240: Verein:
A241: Adresse:
A242: Serie | B242: Tisch | C242: Platz | D242: Spielpunkte | E242: gew. | F242: ver.. | G242: v.G. | H242: Gesamtpunkte
... 248 more rows

Sheet StaKa E 2 S. (ohne 2.)
A1: Name, Vorname | H1: 1 | J1: Auf Druckeinstellung achten!
A2: Verein: | J2: Ob eine oder 2 Seiten je Blatt!
A3: Adresse: | J3: 64 Spieler, 2. Serie wird gesetzt
A4: Serie | B4: Tisch | C4: Platz | D4: Spielpunkte | E4: gew. | F4: ver.. | G4: v.G. | H4: Gesamtpunkte | J4: oder nach "Hinweis" weitergesetzt.
A5: 1 | B5: 1 | C5: 1 | J5: Den Tisch jeweils um 16 erhöhen,
A6: 2 | J6: nächster Spieler dann 65, 129, 193 usw.
A7: Summe:
A10: Name, Vorname | H10: =H1+1 -> 2
A11: Verein:
A12: Adresse:
A13: Serie | B13: Tisch | C13: Platz | D13: Spielpunkte | E13: gew. | F13: ver.. | G13: v.G. | H13: Gesamtpunkte
A14: 1 | B14: =B5 -> 1 | C14: =C5+1 -> 2
A15: 2
A16: Summe:
A19: Name, Vorname | H19: =H10+1 -> 3
A20: Verein:
A21: Adresse:
A22: Serie | B22: Tisch | C22: Platz | D22: Spielpunkte | E22: gew. | F22: ver.. | G22: v.G. | H22: Gesamtpunkte
A23: 1 | B23: =B5 -> 1 | C23: =C14+1 -> 3
A24: 2
A25: Summe:
A28: Name, Vorname | H28: =H19+1 -> 4
A29: Verein:
A30: Adresse:
A31: Serie | B31: Tisch | C31: Platz | D31: Spielpunkte | E31: gew. | F31: ver.. | G31: v.G. | H31: Gesamtpunkte
A32: 1 | B32: =B5 -> 1 | C32: =C23+1 -> 4
A33: 2
A34: Summe:
A35: Name, Vorname | H35: =H28+1 -> 5
A36: Verein:
A37: Adresse:
A38: Serie | B38: Tisch | C38: Platz | D38: Spielpunkte | E38: gew. | F38: ver.. | G38: v.G. | H38: Gesamtpunkte
A39: 1 | B39: =B5+1 -> 2 | C39: =C5 -> 1
A40: 2
A41: Summe:
A44: Name, Vorname | H44: =H35+1 -> 6
A45: Verein:
A46: Adresse:
A47: Serie | B47: Tisch | C47: Platz | D47: Spielpunkte | E47: gew. | F47: ver.. | G47: v.G. | H47: Gesamtpunkte
A48: 1 | B48: =B14+1 -> 2 | C48: =C39+1 -> 2
A49: 2
A50: Summe:
A53: Name, Vorname | H53: =H44+1 -> 7
A54: Verein:
A55: Adresse:
A56: Serie | B56: Tisch | C56: Platz | D56: Spielpunkte | E56: gew. | F56: ver.. | G56: v.G. | H56: Gesamtpunkte
A57: 1 | B57: =B23+1 -> 2 | C57: =C48+1 -> 3
A58: 2
A59: Summe:
A62: Name, Vorname | H62: =H53+1 -> 8
A63: Verein:
A64: Adresse:
A65: Serie | B65: Tisch | C65: Platz | D65: Spielpunkte | E65: gew. | F65: ver.. | G65: v.G. | H65: Gesamtpunkte
A66: 1 | B66: =B32+1 -> 2 | C66: =C57+1 -> 4
A67: 2
A68: Summe:
A69: Name, Vorname | H69: =H62+1 -> 9
A70: Verein:
A71: Adresse:
A72: Serie | B72: Tisch | C72: Platz | D72: Spielpunkte | E72: gew. | F72: ver.. | G72: v.G. | H72: Gesamtpunkte
A73: 1 | B73: =B39+1 -> 3 | C73: =C5 -> 1
A74: 2
A75: Summe:
A78: Name, Vorname | H78: =H69+1 -> 10
A79: Verein:
A80: Adresse:
A81: Serie | B81: Tisch | C81: Platz | D81: Spielpunkte | E81: gew. | F81: ver.. | G81: v.G. | H81: Gesamtpunkte
A82: 1 | B82: =B48+1 -> 3 | C82: =C73+1 -> 2
A83: 2
A84: Summe:
A87: Name, Vorname | H87: =H78+1 -> 11
A88: Verein:
A89: Adresse:
A90: Serie | B90: Tisch | C90: Platz | D90: Spielpunkte | E90: gew. | F90: ver.. | G90: v.G. | H90: Gesamtpunkte
A91: 1 | B91: =B57+1 -> 3 | C91: =C82+1 -> 3
A92: 2
A93: Summe:
A96: Name, Vorname | H96: =H87+1 -> 12
A97: Verein:
A98: Adresse:
A99: Serie | B99: Tisch | C99: Platz | D99: Spielpunkte | E99: gew. | F99: ver.. | G99: v.G. | H99: Gesamtpunkte
A100: 1 | B100: =B66+1 -> 3 | C100: =C91+1 -> 4
A101: 2
A102: Summe:
A103: Name, Vorname | H103: =H96+1 -> 13
A104: Verein:
A105: Adresse:
A106: Serie | B106: Tisch | C106: Platz | D106: Spielpunkte | E106: gew. | F106: ver.. | G106: v.G. | H106: Gesamtpunkte
A107: 1 | B107: =B73+1 -> 4 | C107: =C5 -> 1
A108: 2
A109: Summe:
A112: Name, Vorname | H112: =H103+1 -> 14
A113: Verein:
A114: Adresse:
A115: Serie | B115: Tisch | C115: Platz | D115: Spielpunkte | E115: gew. | F115: ver.. | G115: v.G. | H115: Gesamtpunkte
A116: 1 | B116: =B82+1 -> 4 | C116: =C107+1 -> 2
A117: 2
A118: Summe:
A121: Name, Vorname | H121: =H112+1 -> 15
A122: Verein:
A123: Adresse:
A124: Serie | B124: Tisch | C124: Platz | D124: Spielpunkte | E124: gew. | F124: ver.. | G124: v.G. | H124: Gesamtpunkte
A125: 1 | B125: =B91+1 -> 4 | C125: =C116+1 -> 3
A126: 2
A127: Summe:
A130: Name, Vorname | H130: =H121+1 -> 16
A131: Verein:
A132: Adresse:
A133: Serie | B133: Tisch | C133: Platz | D133: Spielpunkte | E133: gew. | F133: ver.. | G133: v.G. | H133: Gesamtpunkte
A134: 1 | B134: =B100+1 -> 4 | C134: =C125+1 -> 4
A135: 2
A136: Summe:
A137: Name, Vorname | H137: =H130+1 -> 17
A138: Verein:
A139: Adresse:
A140: Serie | B140: Tisch | C140: Platz | D140: Spielpunkte | E140: gew. | F140: ver.. | G140: v.G. | H140: Gesamtpunkte
A141: 1 | B141: =B107+1 -> 5 | C141: =C5 -> 1
A142: 2
A143: Summe:
A146: Name, Vorname | H146: =H137+1 -> 18
A147: Verein:
A148: Adresse:
A149: Serie | B149: Tisch | C149: Platz | D149: Spielpunkte | E149: gew. | F149: ver.. | G149: v.G. | H149: Gesamtpunkte
A150: 1 | B150: =B116+1 -> 5 | C150: =C141+1 -> 2
A151: 2
A152: Summe:
A155: Name, Vorname | H155: =H146+1 -> 19
A156: Verein:
A157: Adresse:
A158: Serie | B158: Tisch | C158: Platz | D158: Spielpunkte | E158: gew. | F158: ver.. | G158: v.G. | H158: Gesamtpunkte
A159: 1 | B159: =B125+1 -> 5 | C159: =C150+1 -> 3
A160: 2
A161: Summe:
A164: Name, Vorname | H164: =H155+1 -> 20
A165: Verein:
A166: Adresse:
A167: Serie | B167: Tisch | C167: Platz | D167: Spielpunkte | E167: gew. | F167: ver.. | G167: v.G. | H167: Gesamtpunkte
A168: 1 | B168: =B134+1 -> 5 | C168: =C159+1 -> 4
A169: 2
A170: Summe:
A171: Name, Vorname | H171: =H164+1 -> 21
A172: Verein:
A173: Adresse:
A174: Serie | B174: Tisch | C174: Platz | D174: Spielpunkte | E174: gew. | F174: ver.. | G174: v.G. | H174: Gesamtpunkte
A175: 1 | B175: =B141+1 -> 6 | C175: =C39 -> 1
A176: 2
A177: Summe:
A180: Name, Vorname | H180: =H171+1 -> 22
A181: Verein:
A182: Adresse:
A183: Serie | B183: Tisch | C183: Platz | D183: Spielpunkte | E183: gew. | F183: ver.. | G183: v.G. | H183: Gesamtpunkte
A184: 1 | B184: =B150+1 -> 6 | C184: =C175+1 -> 2
A185: 2
A186: Summe:
A189: Name, Vorname | H189: =H180+1 -> 23
A190: Verein:
A191: Adresse:
A192: Serie | B192: Tisch | C192: Platz | D192: Spielpunkte | E192: gew. | F192: ver.. | G192: v.G. | H192: Gesamtpunkte
A193: 1 | B193: =B159+1 -> 6 | C193: =C184+1 -> 3
A194: 2
A195: Summe:
A198: Name, Vorname | H198: =H189+1 -> 24
A199: Verein:
A200: Adresse:
A201: Serie | B201: Tisch | C201: Platz | D201: Spielpunkte | E201: gew. | F201: ver.. | G201: v.G. | H201: Gesamtpunkte
A202: 1 | B202: =B168+1 -> 6 | C202: =C193+1 -> 4
A203: 2
A204: Summe:
A205: Name, Vorname | H205: =H198+1 -> 25
A206: Verein:
A207: Adresse:
A208: Serie | B208: Tisch | C208: Platz | D208: Spielpunkte | E208: gew. | F208: ver.. | G208: v.G. | H208: Gesamtpunkte
A209: 1 | B209: =B175+1 -> 7 | C209: =C73 -> 1
A210: 2
A211: Summe:
A214: Name, Vorname | H214: =H205+1 -> 26
A215: Verein:
A216: Adresse:
A217: Serie | B217: Tisch | C217: Platz | D217: Spielpunkte | E217: gew. | F217: ver.. | G217: v.G. | H217: Gesamtpunkte
A218: 1 | B218: =B184+1 -> 7 | C218: =C209+1 -> 2
A219: 2
A220: Summe:
A223: Name, Vorname | H223: =H214+1 -> 27
A224: Verein:
A225: Adresse:
A226: Serie | B226: Tisch | C226: Platz | D226: Spielpunkte | E226: gew. | F226: ver.. | G226: v.G. | H226: Gesamtpunkte
A227: 1 | B227: =B193+1 -> 7 | C227: =C218+1 -> 3
A228: 2
A229: Summe:
A232: Name, Vorname | H232: =H223+1 -> 28
A233: Verein:
A234: Adresse:
A235: Serie | B235: Tisch | C235: Platz | D235: Spielpunkte | E235: gew. | F235: ver.. | G235: v.G. | H235: Gesamtpunkte
A236: 1 | B236: =B202+1 -> 7 | C236: =C227+1 -> 4
A237: 2
A238: Summe:
A239: Name, Vorname | H239: =H232+1 -> 29
A240: Verein:
A241: Adresse:
A242: Serie | B242: Tisch | C242: Platz | D242: Spielpunkte | E242: gew. | F242: ver.. | G242: v.G. | H242: Gesamtpunkte
... 248 more rows

Sheet StaKa E (64)
A1: Name, Vorname | H1: 1 | J1: Auf Druckeinstellung achten!
A2: Verein: | J2: Ob eine oder 2 Seiten je Blatt!
A3: Adresse:
A4: Serie | B4: Tisch | C4: Platz | D4: Spielpunkte | E4: gew. | F4: ver.. | G4: v.G. | H4: Gesamtpunkte
A5: 1 | B5: 1 | C5: 1
A6: 2 | B6: =B5+1 -> 2 | C6: =C5+1 -> 2
A7: Summe:
A10: Name, Vorname | H10: =H1+1 -> 2
A11: Verein:
A12: Adresse:
A13: Serie | B13: Tisch | C13: Platz | D13: Spielpunkte | E13: gew. | F13: ver.. | G13: v.G. | H13: Gesamtpunkte
A14: 1 | B14: =B5 -> 1 | C14: =C5+1 -> 2
A15: 2 | B15: =B14+2 -> 3 | C15: =C6+1 -> 3
A16: Summe:
A19: Name, Vorname | H19: =H10+1 -> 3
A20: Verein:
A21: Adresse:
A22: Serie | B22: Tisch | C22: Platz | D22: Spielpunkte | E22: gew. | F22: ver.. | G22: v.G. | H22: Gesamtpunkte
A23: 1 | B23: =B5 -> 1 | C23: =C14+1 -> 3
A24: 2 | B24: =B23+3 -> 4 | C24: =C15+1 -> 4
A25: Summe:
A28: Name, Vorname | H28: =H19+1 -> 4
A29: Verein:
A30: Adresse:
A31: Serie | B31: Tisch | C31: Platz | D31: Spielpunkte | E31: gew. | F31: ver.. | G31: v.G. | H31: Gesamtpunkte
A32: 1 | B32: =B5 -> 1 | C32: =C23+1 -> 4
A33: 2 | B33: =B32+5 -> 6 | C33: =C24-3 -> 1
A34: Summe:
A35: Name, Vorname | H35: =H28+1 -> 5
A36: Verein:
A37: Adresse:
A38: Serie | B38: Tisch | C38: Platz | D38: Spielpunkte | E38: gew. | F38: ver.. | G38: v.G. | H38: Gesamtpunkte
A39: 1 | B39: =B5+1 -> 2 | C39: =C5 -> 1
A40: 2 | B40: =B39+1 -> 3 | C40: =C39+1 -> 2
A41: Summe:
A44: Name, Vorname | H44: =H35+1 -> 6
A45: Verein:
A46: Adresse:
A47: Serie | B47: Tisch | C47: Platz | D47: Spielpunkte | E47: gew. | F47: ver.. | G47: v.G. | H47: Gesamtpunkte
A48: 1 | B48: =B14+1 -> 2 | C48: =C39+1 -> 2
A49: 2 | B49: =B48+2 -> 4 | C49: =C40+1 -> 3
A50: Summe:
A53: Name, Vorname | H53: =H44+1 -> 7
A54: Verein:
A55: Adresse:
A56: Serie | B56: Tisch | C56: Platz | D56: Spielpunkte | E56: gew. | F56: ver.. | G56: v.G. | H56: Gesamtpunkte
A57: 1 | B57: =B23+1 -> 2 | C57: =C48+1 -> 3
A58: 2 | B58: =B57+3 -> 5 | C58: =C49+1 -> 4
A59: Summe:
A62: Name, Vorname | H62: =H53+1 -> 8
A63: Verein:
A64: Adresse:
A65: Serie | B65: Tisch | C65: Platz | D65: Spielpunkte | E65: gew. | F65: ver.. | G65: v.G. | H65: Gesamtpunkte
A66: 1 | B66: =B32+1 -> 2 | C66: =C57+1 -> 4
A67: 2 | B67: =B66+5 -> 7 | C67: =C58-3 -> 1
A68: Summe:
A69: Name, Vorname | H69: =H62+1 -> 9
A70: Verein:
A71: Adresse:
A72: Serie | B72: Tisch | C72: Platz | D72: Spielpunkte | E72: gew. | F72: ver.. | G72: v.G. | H72: Gesamtpunkte
A73: 1 | B73: =B39+1 -> 3 | C73: =C5 -> 1
A74: 2 | B74: =B73+1 -> 4 | C74: =C73+1 -> 2
A75: Summe:
A78: Name, Vorname | H78: =H69+1 -> 10
A79: Verein:
A80: Adresse:
A81: Serie | B81: Tisch | C81: Platz | D81: Spielpunkte | E81: gew. | F81: ver.. | G81: v.G. | H81: Gesamtpunkte
A82: 1 | B82: =B48+1 -> 3 | C82: =C73+1 -> 2
A83: 2 | B83: =B82+2 -> 5 | C83: =C74+1 -> 3
A84: Summe:
A87: Name, Vorname | H87: =H78+1 -> 11
A88: Verein:
A89: Adresse:
A90: Serie | B90: Tisch | C90: Platz | D90: Spielpunkte | E90: gew. | F90: ver.. | G90: v.G. | H90: Gesamtpunkte
A91: 1 | B91: =B57+1 -> 3 | C91: =C82+1 -> 3
A92: 2 | B92: =B91+3 -> 6 | C92: =C83+1 -> 4
A93: Summe:
A96: Name, Vorname | H96: =H87+1 -> 12
A97: Verein:
A98: Adresse:
A99: Serie | B99: Tisch | C99: Platz | D99: Spielpunkte | E99: gew. | F99: ver.. | G99: v.G. | H99: Gesamtpunkte
A100: 1 | B100: =B66+1 -> 3 | C100: =C91+1 -> 4
A101: 2 | B101: =B100+5 -> 8 | C101: =C92-3 -> 1
A102: Summe:
A103: Name, Vorname | H103: =H96+1 -> 13
A104: Verein:
A105: Adresse:
A106: Serie | B106: Tisch | C106: Platz | D106: Spielpunkte | E106: gew. | F106: ver.. | G106: v.G. | H106: Gesamtpunkte
A107: 1 | B107: =B73+1 -> 4 | C107: =C5 -> 1
A108: 2 | B108: =B107+1 -> 5 | C108: =C107+1 -> 2
A109: Summe:
A112: Name, Vorname | H112: =H103+1 -> 14
A113: Verein:
A114: Adresse:
A115: Serie | B115: Tisch | C115: Platz | D115: Spielpunkte | E115: gew. | F115: ver.. | G115: v.G. | H115: Gesamtpunkte
A116: 1 | B116: =B82+1 -> 4 | C116: =C107+1 -> 2
A117: 2 | B117: =B116+2 -> 6 | C117: =C108+1 -> 3
A118: Summe:
A121: Name, Vorname | H121: =H112+1 -> 15
A122: Verein:
A123: Adresse:
A124: Serie | B124: Tisch | C124: Platz | D124: Spielpunkte | E124: gew. | F124: ver.. | G124: v.G. | H124: Gesamtpunkte
A125: 1 | B125: =B91+1 -> 4 | C125: =C116+1 -> 3
A126: 2 | B126: =B125+3 -> 7 | C126: =C117+1 -> 4
A127: Summe:
A130: Name, Vorname | H130: =H121+1 -> 16
A131: Verein:
A132: Adresse:
A133: Serie | B133: Tisch | C133: Platz | D133: Spielpunkte | E133: gew. | F133: ver.. | G133: v.G. | H133: Gesamtpunkte
A134: 1 | B134: =B100+1 -> 4 | C134: =C125+1 -> 4
A135: 2 | B135: =B134+5 -> 9 | C135: =C126-3 -> 1
A136: Summe:
A137: Name, Vorname | H137: =H130+1 -> 17
A138: Verein:
A139: Adresse:
A140: Serie | B140: Tisch | C140: Platz | D140: Spielpunkte | E140: gew. | F140: ver.. | G140: v.G. | H140: Gesamtpunkte
A141: 1 | B141: =B107+1 -> 5 | C141: =C5 -> 1
A142: 2 | B142: =B141+1 -> 6 | C142: =C141+1 -> 2
A143: Summe:
A146: Name, Vorname | H146: =H137+1 -> 18
A147: Verein:
A148: Adresse:
A149: Serie | B149: Tisch | C149: Platz | D149: Spielpunkte | E149: gew. | F149: ver.. | G149: v.G. | H149: Gesamtpunkte
A150: 1 | B150: =B116+1 -> 5 | C150: =C141+1 -> 2
A151: 2 | B151: =B150+2 -> 7 | C151: =C142+1 -> 3
A152: Summe:
A155: Name, Vorname | H155: =H146+1 -> 19
A156: Verein:
A157: Adresse:
A158: Serie | B158: Tisch | C158: Platz | D158: Spielpunkte | E158: gew. | F158: ver.. | G158: v.G. | H158: Gesamtpunkte
A159: 1 | B159: =B125+1 -> 5 | C159: =C150+1 -> 3
A160: 2 | B160: =B159+3 -> 8 | C160: =C151+1 -> 4
A161: Summe:
A164: Name, Vorname | H164: =H155+1 -> 20
A165: Verein:
A166: Adresse:
A167: Serie | B167: Tisch | C167: Platz | D167: Spielpunkte | E167: gew. | F167: ver.. | G167: v.G. | H167: Gesamtpunkte
A168: 1 | B168: =B134+1 -> 5 | C168: =C159+1 -> 4
A169: 2 | B169: =B168+5 -> 10 | C169: =C160-3 -> 1
A170: Summe:
A171: Name, Vorname | H171: =H164+1 -> 21
A172: Verein:
A173: Adresse:
A174: Serie | B174: Tisch | C174: Platz | D174: Spielpunkte | E174: gew. | F174: ver.. | G174: v.G. | H174: Gesamtpunkte
A175: 1 | B175: =B141+1 -> 6 | C175: =C39 -> 1
A176: 2 | B176: =B175+1 -> 7 | C176: =C175+1 -> 2
A177: Summe:
A180: Name, Vorname | H180: =H171+1 -> 22
A181: Verein:
A182: Adresse:
A183: Serie | B183: Tisch | C183: Platz | D183: Spielpunkte | E183: gew. | F183: ver.. | G183: v.G. | H183: Gesamtpunkte
A184: 1 | B184: =B150+1 -> 6 | C184: =C175+1 -> 2
A185: 2 | B185: =B184+2 -> 8 | C185: =C176+1 -> 3
A186: Summe:
A189: Name, Vorname | H189: =H180+1 -> 23
A190: Verein:
A191: Adresse:
A192: Serie | B192: Tisch | C192: Platz | D192: Spielpunkte | E192: gew. | F192: ver.. | G192: v.G. | H192: Gesamtpunkte
A193: 1 | B193: =B159+1 -> 6 | C193: =C184+1 -> 3
A194: 2 | B194: =B193+3 -> 9 | C194: =C185+1 -> 4
A195: Summe:
A198: Name, Vorname | H198: =H189+1 -> 24
A199: Verein:
A200: Adresse:
A201: Serie | B201: Tisch | C201: Platz | D201: Spielpunkte | E201: gew. | F201: ver.. | G201: v.G. | H201: Gesamtpunkte
A202: 1 | B202: =B168+1 -> 6 | C202: =C193+1 -> 4
A203: 2 | B203: =B202+5 -> 11 | C203: =C194-3 -> 1
A204: Summe:
A205: Name, Vorname | H205: =H198+1 -> 25
A206: Verein:
A207: Adresse:
A208: Serie | B208: Tisch | C208: Platz | D208: Spielpunkte | E208: gew. | F208: ver.. | G208: v.G. | H208: Gesamtpunkte
A209: 1 | B209: =B175+1 -> 7 | C209: =C73 -> 1
A210: 2 | B210: =B209+1 -> 8 | C210: =C209+1 -> 2
A211: Summe:
A214: Name, Vorname | H214: =H205+1 -> 26
A215: Verein:
A216: Adresse:
A217: Serie | B217: Tisch | C217: Platz | D217: Spielpunkte | E217: gew. | F217: ver.. | G217: v.G. | H217: Gesamtpunkte
A218: 1 | B218: =B184+1 -> 7 | C218: =C209+1 -> 2
A219: 2 | B219: =B218+2 -> 9 | C219: =C210+1 -> 3
A220: Summe:
A223: Name, Vorname | H223: =H214+1 -> 27
A224: Verein:
A225: Adresse:
A226: Serie | B226: Tisch | C226: Platz | D226: Spielpunkte | E226: gew. | F226: ver.. | G226: v.G. | H226: Gesamtpunkte
A227: 1 | B227: =B193+1 -> 7 | C227: =C218+1 -> 3
A228: 2 | B228: =B227+3 -> 10 | C228: =C219+1 -> 4
A229: Summe:
A232: Name, Vorname | H232: =H223+1 -> 28
A233: Verein:
A234: Adresse:
A235: Serie | B235: Tisch | C235: Platz | D235: Spielpunkte | E235: gew. | F235: ver.. | G235: v.G. | H235: Gesamtpunkte
A236: 1 | B236: =B202+1 -> 7 | C236: =C227+1 -> 4
A237: 2 | B237: =B236+5 -> 12 | C237: =C228-3 -> 1
A238: Summe:
A239: Name, Vorname | H239: =H232+1 -> 29
A240: Verein:
A241: Adresse:
A242: Serie | B242: Tisch | C242: Platz | D242: Spielpunkte | E242: gew. | F242: ver.. | G242: v.G. | H242: Gesamtpunkte
... 248 more rows

Sheet StaKa E (128)
A1: Name, Vorname | H1: 65 | J1: Auf Druckeinstellung achten!
A2: Verein: | J2: Ob eine oder 2 Seiten je Blatt!
A3: Adresse:
A4: Serie | B4: Tisch | C4: Platz | D4: Spielpunkte | E4: gew. | F4: ver.. | G4: v.G. | H4: Gesamtpunkte
A5: 1 | B5: 17 | C5: 1
A6: 2 | B6: =B5+1 -> 18 | C6: =C5+1 -> 2
A7: Summe:
A10: Name, Vorname | H10: =H1+1 -> 66
A11: Verein:
A12: Adresse:
A13: Serie | B13: Tisch | C13: Platz | D13: Spielpunkte | E13: gew. | F13: ver.. | G13: v.G. | H13: Gesamtpunkte
A14: 1 | B14: =B5 -> 17 | C14: =C5+1 -> 2
A15: 2 | B15: =B14+2 -> 19 | C15: =C6+1 -> 3
A16: Summe:
A19: Name, Vorname | H19: =H10+1 -> 67
A20: Verein:
A21: Adresse:
A22: Serie | B22: Tisch | C22: Platz | D22: Spielpunkte | E22: gew. | F22: ver.. | G22: v.G. | H22: Gesamtpunkte
A23: 1 | B23: =B5 -> 17 | C23: =C14+1 -> 3
A24: 2 | B24: =B23+3 -> 20 | C24: =C15+1 -> 4
A25: Summe:
A28: Name, Vorname | H28: =H19+1 -> 68
A29: Verein:
A30: Adresse:
A31: Serie | B31: Tisch | C31: Platz | D31: Spielpunkte | E31: gew. | F31: ver.. | G31: v.G. | H31: Gesamtpunkte
A32: 1 | B32: =B5 -> 17 | C32: =C23+1 -> 4
A33: 2 | B33: =B32+5 -> 22 | C33: =C24-3 -> 1
A34: Summe:
A35: Name, Vorname | H35: =H28+1 -> 69
A36: Verein:
A37: Adresse:
A38: Serie | B38: Tisch | C38: Platz | D38: Spielpunkte | E38: gew. | F38: ver.. | G38: v.G. | H38: Gesamtpunkte
A39: 1 | B39: =B5+1 -> 18 | C39: =C5 -> 1
A40: 2 | B40: =B39+1 -> 19 | C40: =C39+1 -> 2
A41: Summe:
A44: Name, Vorname | H44: =H35+1 -> 70
A45: Verein:
A46: Adresse:
A47: Serie | B47: Tisch | C47: Platz | D47: Spielpunkte | E47: gew. | F47: ver.. | G47: v.G. | H47: Gesamtpunkte
A48: 1 | B48: =B14+1 -> 18 | C48: =C39+1 -> 2
A49: 2 | B49: =B48+2 -> 20 | C49: =C40+1 -> 3
A50: Summe:
A53: Name, Vorname | H53: =H44+1 -> 71
A54: Verein:
A55: Adresse:
A56: Serie | B56: Tisch | C56: Platz | D56: Spielpunkte | E56: gew. | F56: ver.. | G56: v.G. | H56: Gesamtpunkte
A57: 1 | B57: =B23+1 -> 18 | C57: =C48+1 -> 3
A58: 2 | B58: =B57+3 -> 21 | C58: =C49+1 -> 4
A59: Summe:
A62: Name, Vorname | H62: =H53+1 -> 72
A63: Verein:
A64: Adresse:
A65: Serie | B65: Tisch | C65: Platz | D65: Spielpunkte | E65: gew. | F65: ver.. | G65: v.G. | H65: Gesamtpunkte
A66: 1 | B66: =B32+1 -> 18 | C66: =C57+1 -> 4
A67: 2 | B67: =B66+5 -> 23 | C67: =C58-3 -> 1
A68: Summe:
A69: Name, Vorname | H69: =H62+1 -> 73
A70: Verein:
A71: Adresse:
A72: Serie | B72: Tisch | C72: Platz | D72: Spielpunkte | E72: gew. | F72: ver.. | G72: v.G. | H72: Gesamtpunkte
A73: 1 | B73: =B39+1 -> 19 | C73: =C5 -> 1
A74: 2 | B74: =B73+1 -> 20 | C74: =C73+1 -> 2
A75: Summe:
A78: Name, Vorname | H78: =H69+1 -> 74
A79: Verein:
A80: Adresse:
A81: Serie | B81: Tisch | C81: Platz | D81: Spielpunkte | E81: gew. | F81: ver.. | G81: v.G. | H81: Gesamtpunkte
A82: 1 | B82: =B48+1 -> 19 | C82: =C73+1 -> 2
A83: 2 | B83: =B82+2 -> 21 | C83: =C74+1 -> 3
A84: Summe:
A87: Name, Vorname | H87: =H78+1 -> 75
A88: Verein:
A89: Adresse:
A90: Serie | B90: Tisch | C90: Platz | D90: Spielpunkte | E90: gew. | F90: ver.. | G90: v.G. | H90: Gesamtpunkte
A91: 1 | B91: =B57+1 -> 19 | C91: =C82+1 -> 3
A92: 2 | B92: =B91+3 -> 22 | C92: =C83+1 -> 4
A93: Summe:
A96: Name, Vorname | H96: =H87+1 -> 76
A97: Verein:
A98: Adresse:
A99: Serie | B99: Tisch | C99: Platz | D99: Spielpunkte | E99: gew. | F99: ver.. | G99: v.G. | H99: Gesamtpunkte
A100: 1 | B100: =B66+1 -> 19 | C100: =C91+1 -> 4
A101: 2 | B101: =B100+5 -> 24 | C101: =C92-3 -> 1
A102: Summe:
A103: Name, Vorname | H103: =H96+1 -> 77
A104: Verein:
A105: Adresse:
A106: Serie | B106: Tisch | C106: Platz | D106: Spielpunkte | E106: gew. | F106: ver.. | G106: v.G. | H106: Gesamtpunkte
A107: 1 | B107: =B73+1 -> 20 | C107: =C5 -> 1
A108: 2 | B108: =B107+1 -> 21 | C108: =C107+1 -> 2
A109: Summe:
A112: Name, Vorname | H112: =H103+1 -> 78
A113: Verein:
A114: Adresse:
A115: Serie | B115: Tisch | C115: Platz | D115: Spielpunkte | E115: gew. | F115: ver.. | G115: v.G. | H115: Gesamtpunkte
A116: 1 | B116: =B82+1 -> 20 | C116: =C107+1 -> 2
A117: 2 | B117: =B116+2 -> 22 | C117: =C108+1 -> 3
A118: Summe:
A121: Name, Vorname | H121: =H112+1 -> 79
A122: Verein:
A123: Adresse:
A124: Serie | B124: Tisch | C124: Platz | D124: Spielpunkte | E124: gew. | F124: ver.. | G124: v.G. | H124: Gesamtpunkte
A125: 1 | B125: =B91+1 -> 20 | C125: =C116+1 -> 3
A126: 2 | B126: =B125+3 -> 23 | C126: =C117+1 -> 4
A127: Summe:
A130: Name, Vorname | H130: =H121+1 -> 80
A131: Verein:
A132: Adresse:
A133: Serie | B133: Tisch | C133: Platz | D133: Spielpunkte | E133: gew. | F133: ver.. | G133: v.G. | H133: Gesamtpunkte
A134: 1 | B134: =B100+1 -> 20 | C134: =C125+1 -> 4
A135: 2 | B135: =B134+5 -> 25 | C135: =C126-3 -> 1
A136: Summe:
A137: Name, Vorname | H137: =H130+1 -> 81
A138: Verein:
A139: Adresse:
A140: Serie | B140: Tisch | C140: Platz | D140: Spielpunkte | E140: gew. | F140: ver.. | G140: v.G. | H140: Gesamtpunkte
A141: 1 | B141: =B107+1 -> 21 | C141: =C5 -> 1
A142: 2 | B142: =B141+1 -> 22 | C142: =C141+1 -> 2
A143: Summe:
A146: Name, Vorname | H146: =H137+1 -> 82
A147: Verein:
A148: Adresse:
A149: Serie | B149: Tisch | C149: Platz | D149: Spielpunkte | E149: gew. | F149: ver.. | G149: v.G. | H149: Gesamtpunkte
A150: 1 | B150: =B116+1 -> 21 | C150: =C141+1 -> 2
A151: 2 | B151: =B150+2 -> 23 | C151: =C142+1 -> 3
A152: Summe:
A155: Name, Vorname | H155: =H146+1 -> 83
A156: Verein:
A157: Adresse:
A158: Serie | B158: Tisch | C158: Platz | D158: Spielpunkte | E158: gew. | F158: ver.. | G158: v.G. | H158: Gesamtpunkte
A159: 1 | B159: =B125+1 -> 21 | C159: =C150+1 -> 3
A160: 2 | B160: =B159+3 -> 24 | C160: =C151+1 -> 4
A161: Summe:
A164: Name, Vorname | H164: =H155+1 -> 84
A165: Verein:
A166: Adresse:
A167: Serie | B167: Tisch | C167: Platz | D167: Spielpunkte | E167: gew. | F167: ver.. | G167: v.G. | H167: Gesamtpunkte
A168: 1 | B168: =B134+1 -> 21 | C168: =C159+1 -> 4
A169: 2 | B169: =B168+5 -> 26 | C169: =C160-3 -> 1
A170: Summe:
A171: Name, Vorname | H171: =H164+1 -> 85
A172: Verein:
A173: Adresse:
A174: Serie | B174: Tisch | C174: Platz | D174: Spielpunkte | E174: gew. | F174: ver.. | G174: v.G. | H174: Gesamtpunkte
A175: 1 | B175: =B141+1 -> 22 | C175: =C39 -> 1
A176: 2 | B176: =B175+1 -> 23 | C176: =C175+1 -> 2
A177: Summe:
A180: Name, Vorname | H180: =H171+1 -> 86
A181: Verein:
A182: Adresse:
A183: Serie | B183: Tisch | C183: Platz | D183: Spielpunkte | E183: gew. | F183: ver.. | G183: v.G. | H183: Gesamtpunkte
A184: 1 | B184: =B150+1 -> 22 | C184: =C175+1 -> 2
A185: 2 | B185: =B184+2 -> 24 | C185: =C176+1 -> 3
A186: Summe:
A189: Name, Vorname | H189: =H180+1 -> 87
A190: Verein:
A191: Adresse:
A192: Serie | B192: Tisch | C192: Platz | D192: Spielpunkte | E192: gew. | F192: ver.. | G192: v.G. | H192: Gesamtpunkte
A193: 1 | B193: =B159+1 -> 22 | C193: =C184+1 -> 3
A194: 2 | B194: =B193+3 -> 25 | C194: =C185+1 -> 4
A195: Summe:
A198: Name, Vorname | H198: =H189+1 -> 88
A199: Verein:
A200: Adresse:
A201: Serie | B201: Tisch | C201: Platz | D201: Spielpunkte | E201: gew. | F201: ver.. | G201: v.G. | H201: Gesamtpunkte
A202: 1 | B202: =B168+1 -> 22 | C202: =C193+1 -> 4
A203: 2 | B203: =B202+5 -> 27 | C203: =C194-3 -> 1
A204: Summe:
A205: Name, Vorname | H205: =H198+1 -> 89
A206: Verein:
A207: Adresse:
A208: Serie | B208: Tisch | C208: Platz | D208: Spielpunkte | E208: gew. | F208: ver.. | G208: v.G. | H208: Gesamtpunkte
A209: 1 | B209: =B175+1 -> 23 | C209: =C73 -> 1
A210: 2 | B210: =B209+1 -> 24 | C210: =C209+1 -> 2
A211: Summe:
A214: Name, Vorname | H214: =H205+1 -> 90
A215: Verein:
A216: Adresse:
A217: Serie | B217: Tisch | C217: Platz | D217: Spielpunkte | E217: gew. | F217: ver.. | G217: v.G. | H217: Gesamtpunkte
A218: 1 | B218: =B184+1 -> 23 | C218: =C209+1 -> 2
A219: 2 | B219: =B218+2 -> 25 | C219: =C210+1 -> 3
A220: Summe:
A223: Name, Vorname | H223: =H214+1 -> 91
A224: Verein:
A225: Adresse:
A226: Serie | B226: Tisch | C226: Platz | D226: Spielpunkte | E226: gew. | F226: ver.. | G226: v.G. | H226: Gesamtpunkte
A227: 1 | B227: =B193+1 -> 23 | C227: =C218+1 -> 3
A228: 2 | B228: =B227+3 -> 26 | C228: =C219+1 -> 4
A229: Summe:
A232: Name, Vorname | H232: =H223+1 -> 92
A233: Verein:
A234: Adresse:
A235: Serie | B235: Tisch | C235: Platz | D235: Spielpunkte | E235: gew. | F235: ver.. | G235: v.G. | H235: Gesamtpunkte
A236: 1 | B236: =B202+1 -> 23 | C236: =C227+1 -> 4
A237: 2 | B237: =B236+5 -> 28 | C237: =C228-3 -> 1
A238: Summe:
A239: Name, Vorname | H239: =H232+1 -> 93
A240: Verein:
A241: Adresse:
A242: Serie | B242: Tisch | C242: Platz | D242: Spielpunkte | E242: gew. | F242: ver.. | G242: v.G. | H242: Gesamtpunkte
... 248 more rows

Sheet StaKa E (192)
A1: Name, Vorname | H1: 129 | J1: Auf Druckeinstellung achten!
A2: Verein: | J2: Ob eine oder 2 Seiten je Blatt!
A3: Adresse:
A4: Serie | B4: Tisch | C4: Platz | D4: Spielpunkte | E4: gew. | F4: ver.. | G4: v.G. | H4: Gesamtpunkte
A5: 1 | B5: 33 | C5: 1
A6: 2 | B6: =B5+1 -> 34 | C6: =C5+1 -> 2
A7: Summe:
A10: Name, Vorname | H10: =H1+1 -> 130
A11: Verein:
A12: Adresse:
A13: Serie | B13: Tisch | C13: Platz | D13: Spielpunkte | E13: gew. | F13: ver.. | G13: v.G. | H13: Gesamtpunkte
A14: 1 | B14: =B5 -> 33 | C14: =C5+1 -> 2
A15: 2 | B15: =B14+2 -> 35 | C15: =C6+1 -> 3
A16: Summe:
A19: Name, Vorname | H19: =H10+1 -> 131
A20: Verein:
A21: Adresse:
A22: Serie | B22: Tisch | C22: Platz | D22: Spielpunkte | E22: gew. | F22: ver.. | G22: v.G. | H22: Gesamtpunkte
A23: 1 | B23: =B5 -> 33 | C23: =C14+1 -> 3
A24: 2 | B24: =B23+3 -> 36 | C24: =C15+1 -> 4
A25: Summe:
A28: Name, Vorname | H28: =H19+1 -> 132
A29: Verein:
A30: Adresse:
A31: Serie | B31: Tisch | C31: Platz | D31: Spielpunkte | E31: gew. | F31: ver.. | G31: v.G. | H31: Gesamtpunkte
A32: 1 | B32: =B5 -> 33 | C32: =C23+1 -> 4
A33: 2 | B33: =B32+5 -> 38 | C33: =C24-3 -> 1
A34: Summe:
A35: Name, Vorname | H35: =H28+1 -> 133
A36: Verein:
A37: Adresse:
A38: Serie | B38: Tisch | C38: Platz | D38: Spielpunkte | E38: gew. | F38: ver.. | G38: v.G. | H38: Gesamtpunkte
A39: 1 | B39: =B5+1 -> 34 | C39: =C5 -> 1
A40: 2 | B40: =B39+1 -> 35 | C40: =C39+1 -> 2
A41: Summe:
A44: Name, Vorname | H44: =H35+1 -> 134
A45: Verein:
A46: Adresse:
A47: Serie | B47: Tisch | C47: Platz | D47: Spielpunkte | E47: gew. | F47: ver.. | G47: v.G. | H47: Gesamtpunkte
A48: 1 | B48: =B14+1 -> 34 | C48: =C39+1 -> 2
A49: 2 | B49: =B48+2 -> 36 | C49: =C40+1 -> 3
A50: Summe:
A53: Name, Vorname | H53: =H44+1 -> 135
A54: Verein:
A55: Adresse:
A56: Serie | B56: Tisch | C56: Platz | D56: Spielpunkte | E56: gew. | F56: ver.. | G56: v.G. | H56: Gesamtpunkte
A57: 1 | B57: =B23+1 -> 34 | C57: =C48+1 -> 3
A58: 2 | B58: =B57+3 -> 37 | C58: =C49+1 -> 4
A59: Summe:
A62: Name, Vorname | H62: =H53+1 -> 136
A63: Verein:
A64: Adresse:
A65: Serie | B65: Tisch | C65: Platz | D65: Spielpunkte | E65: gew. | F65: ver.. | G65: v.G. | H65: Gesamtpunkte
A66: 1 | B66: =B32+1 -> 34 | C66: =C57+1 -> 4
A67: 2 | B67: =B66+5 -> 39 | C67: =C58-3 -> 1
A68: Summe:
A69: Name, Vorname | H69: =H62+1 -> 137
A70: Verein:
A71: Adresse:
A72: Serie | B72: Tisch | C72: Platz | D72: Spielpunkte | E72: gew. | F72: ver.. | G72: v.G. | H72: Gesamtpunkte
A73: 1 | B73: =B39+1 -> 35 | C73: =C5 -> 1
A74: 2 | B74: =B73+1 -> 36 | C74: =C73+1 -> 2
A75: Summe:
A78: Name, Vorname | H78: =H69+1 -> 138
A79: Verein:
A80: Adresse:
A81: Serie | B81: Tisch | C81: Platz | D81: Spielpunkte | E81: gew. | F81: ver.. | G81: v.G. | H81: Gesamtpunkte
A82: 1 | B82: =B48+1 -> 35 | C82: =C73+1 -> 2
A83: 2 | B83: =B82+2 -> 37 | C83: =C74+1 -> 3
A84: Summe:
A87: Name, Vorname | H87: =H78+1 -> 139
A88: Verein:
A89: Adresse:
A90: Serie | B90: Tisch | C90: Platz | D90: Spielpunkte | E90: gew. | F90: ver.. | G90: v.G. | H90: Gesamtpunkte
A91: 1 | B91: =B57+1 -> 35 | C91: =C82+1 -> 3
A92: 2 | B92: =B91+3 -> 38 | C92: =C83+1 -> 4
A93: Summe:
A96: Name, Vorname | H96: =H87+1 -> 140
A97: Verein:
A98: Adresse:
A99: Serie | B99: Tisch | C99: Platz | D99: Spielpunkte | E99: gew. | F99: ver.. | G99: v.G. | H99: Gesamtpunkte
A100: 1 | B100: =B66+1 -> 35 | C100: =C91+1 -> 4
A101: 2 | B101: =B100+5 -> 40 | C101: =C92-3 -> 1
A102: Summe:
A103: Name, Vorname | H103: =H96+1 -> 141
A104: Verein:
A105: Adresse:
A106: Serie | B106: Tisch | C106: Platz | D106: Spielpunkte | E106: gew. | F106: ver.. | G106: v.G. | H106: Gesamtpunkte
A107: 1 | B107: =B73+1 -> 36 | C107: =C5 -> 1
A108: 2 | B108: =B107+1 -> 37 | C108: =C107+1 -> 2
A109: Summe:
A112: Name, Vorname | H112: =H103+1 -> 142
A113: Verein:
A114: Adresse:
A115: Serie | B115: Tisch | C115: Platz | D115: Spielpunkte | E115: gew. | F115: ver.. | G115: v.G. | H115: Gesamtpunkte
A116: 1 | B116: =B82+1 -> 36 | C116: =C107+1 -> 2
A117: 2 | B117: =B116+2 -> 38 | C117: =C108+1 -> 3
A118: Summe:
A121: Name, Vorname | H121: =H112+1 -> 143
A122: Verein:
A123: Adresse:
A124: Serie | B124: Tisch | C124: Platz | D124: Spielpunkte | E124: gew. | F124: ver.. | G124: v.G. | H124: Gesamtpunkte
A125: 1 | B125: =B91+1 -> 36 | C125: =C116+1 -> 3
A126: 2 | B126: =B125+3 -> 39 | C126: =C117+1 -> 4
A127: Summe:
A130: Name, Vorname | H130: =H121+1 -> 144
A131: Verein:
A132: Adresse:
A133: Serie | B133: Tisch | C133: Platz | D133: Spielpunkte | E133: gew. | F133: ver.. | G133: v.G. | H133: Gesamtpunkte
A134: 1 | B134: =B100+1 -> 36 | C134: =C125+1 -> 4
A135: 2 | B135: =B134+5 -> 41 | C135: =C126-3 -> 1
A136: Summe:
A137: Name, Vorname | H137: =H130+1 -> 145
A138: Verein:
A139: Adresse:
A140: Serie | B140: Tisch | C140: Platz | D140: Spielpunkte | E140: gew. | F140: ver.. | G140: v.G. | H140: Gesamtpunkte
A141: 1 | B141: =B107+1 -> 37 | C141: =C5 -> 1
A142: 2 | B142: =B141+1 -> 38 | C142: =C141+1 -> 2
A143: Summe:
A146: Name, Vorname | H146: =H137+1 -> 146
A147: Verein:
A148: Adresse:
A149: Serie | B149: Tisch | C149: Platz | D149: Spielpunkte | E149: gew. | F149: ver.. | G149: v.G. | H149: Gesamtpunkte
A150: 1 | B150: =B116+1 -> 37 | C150: =C141+1 -> 2
A151: 2 | B151: =B150+2 -> 39 | C151: =C142+1 -> 3
A152: Summe:
A155: Name, Vorname | H155: =H146+1 -> 147
A156: Verein:
A157: Adresse:
A158: Serie | B158: Tisch | C158: Platz | D158: Spielpunkte | E158: gew. | F158: ver.. | G158: v.G. | H158: Gesamtpunkte
A159: 1 | B159: =B125+1 -> 37 | C159: =C150+1 -> 3
A160: 2 | B160: =B159+3 -> 40 | C160: =C151+1 -> 4
A161: Summe:
A164: Name, Vorname | H164: =H155+1 -> 148
A165: Verein:
A166: Adresse:
A167: Serie | B167: Tisch | C167: Platz | D167: Spielpunkte | E167: gew. | F167: ver.. | G167: v.G. | H167: Gesamtpunkte
A168: 1 | B168: =B134+1 -> 37 | C168: =C159+1 -> 4
A169: 2 | B169: =B168+5 -> 42 | C169: =C160-3 -> 1
A170: Summe:
A171: Name, Vorname | H171: =H164+1 -> 149
A172: Verein:
A173: Adresse:
A174: Serie | B174: Tisch | C174: Platz | D174: Spielpunkte | E174: gew. | F174: ver.. | G174: v.G. | H174: Gesamtpunkte
A175: 1 | B175: =B141+1 -> 38 | C175: =C39 -> 1
A176: 2 | B176: =B175+1 -> 39 | C176: =C175+1 -> 2
A177: Summe:
A180: Name, Vorname | H180: =H171+1 -> 150
A181: Verein:
A182: Adresse:
A183: Serie | B183: Tisch | C183: Platz | D183: Spielpunkte | E183: gew. | F183: ver.. | G183: v.G. | H183: Gesamtpunkte
A184: 1 | B184: =B150+1 -> 38 | C184: =C175+1 -> 2
A185: 2 | B185: =B184+2 -> 40 | C185: =C176+1 -> 3
A186: Summe:
A189: Name, Vorname | H189: =H180+1 -> 151
A190: Verein:
A191: Adresse:
A192: Serie | B192: Tisch | C192: Platz | D192: Spielpunkte | E192: gew. | F192: ver.. | G192: v.G. | H192: Gesamtpunkte
A193: 1 | B193: =B159+1 -> 38 | C193: =C184+1 -> 3
A194: 2 | B194: =B193+3 -> 41 | C194: =C185+1 -> 4
A195: Summe:
A198: Name, Vorname | H198: =H189+1 -> 152
A199: Verein:
A200: Adresse:
A201: Serie | B201: Tisch | C201: Platz | D201: Spielpunkte | E201: gew. | F201: ver.. | G201: v.G. | H201: Gesamtpunkte
A202: 1 | B202: =B168+1 -> 38 | C202: =C193+1 -> 4
A203: 2 | B203: =B202+5 -> 43 | C203: =C194-3 -> 1
A204: Summe:
A205: Name, Vorname | H205: =H198+1 -> 153
A206: Verein:
A207: Adresse:
A208: Serie | B208: Tisch | C208: Platz | D208: Spielpunkte | E208: gew. | F208: ver.. | G208: v.G. | H208: Gesamtpunkte
A209: 1 | B209: =B175+1 -> 39 | C209: =C73 -> 1
A210: 2 | B210: =B209+1 -> 40 | C210: =C209+1 -> 2
A211: Summe:
A214: Name, Vorname | H214: =H205+1 -> 154
A215: Verein:
A216: Adresse:
A217: Serie | B217: Tisch | C217: Platz | D217: Spielpunkte | E217: gew. | F217: ver.. | G217: v.G. | H217: Gesamtpunkte
A218: 1 | B218: =B184+1 -> 39 | C218: =C209+1 -> 2
A219: 2 | B219: =B218+2 -> 41 | C219: =C210+1 -> 3
A220: Summe:
A223: Name, Vorname | H223: =H214+1 -> 155
A224: Verein:
A225: Adresse:
A226: Serie | B226: Tisch | C226: Platz | D226: Spielpunkte | E226: gew. | F226: ver.. | G226: v.G. | H226: Gesamtpunkte
A227: 1 | B227: =B193+1 -> 39 | C227: =C218+1 -> 3
A228: 2 | B228: =B227+3 -> 42 | C228: =C219+1 -> 4
A229: Summe:
A232: Name, Vorname | H232: =H223+1 -> 156
A233: Verein:
A234: Adresse:
A235: Serie | B235: Tisch | C235: Platz | D235: Spielpunkte | E235: gew. | F235: ver.. | G235: v.G. | H235: Gesamtpunkte
A236: 1 | B236: =B202+1 -> 39 | C236: =C227+1 -> 4
A237: 2 | B237: =B236+5 -> 44 | C237: =C228-3 -> 1
A238: Summe:
A239: Name, Vorname | H239: =H232+1 -> 157
A240: Verein:
A241: Adresse:
A242: Serie | B242: Tisch | C242: Platz | D242: Spielpunkte | E242: gew. | F242: ver.. | G242: v.G. | H242: Gesamtpunkte
... 248 more rows

Sheet StaKa Einzel (Hinweis)
J1: Für alle "StaKa E" ohne feste Einteilung.
J2: oder als zusätzliche Hilfe
A8: zur 2.Serie: 1 Tisch 1 Platz weiter (opt. zur 3. Serie: 2 Tische 1 Platz weiter)
A17: zur 2.Serie: 2 Tische 1 Platz weiter (opt. zur 3. Serie: 3 Tische 1 Platz weiter)
A26: zur 2.Serie: 3 Tische 1 Platz weiter (opt. zur 3. Serie: 4 Tische 1 Platz weiter)
A27: zur 2.Serie: 4 Tische 1 Platz weiter (opt. zur 3. Serie: 1 Tisch 1 Platz weiter)
A42: zur 2.Serie: 1 Tisch 1 Platz weiter (opt. zur 3. Serie: 2 Tische 1 Platz weiter)
A51: zur 2.Serie: 2 Tische 1 Platz weiter (opt. zur 3. Serie: 3 Tische 1 Platz weiter)
A60: zur 2.Serie: 3 Tische 1 Platz weiter (opt. zur 3. Serie: 4 Tische 1 Platz weiter)
A61: zur 2.Serie: 4 Tische 1 Platz weiter (opt. zur 3. Serie: 1 Tisch 1 Platz weiter)
A76: zur 2.Serie: 1 Tisch 1 Platz weiter (opt. zur 3. Serie: 2 Tische 1 Platz weiter)
A85: zur 2.Serie: 2 Tische 1 Platz weiter (opt. zur 3. Serie: 3 Tische 1 Platz weiter)
A94: zur 2.Serie: 3 Tische 1 Platz weiter (opt. zur 3. Serie: 4 Tische 1 Platz weiter)
A95: zur 2.Serie: 4 Tische 1 Platz weiter (opt. zur 3. Serie: 1 Tisch 1 Platz weiter)
A110: zur 2.Serie: 1 Tisch 1 Platz weiter (opt. zur 3. Serie: 2 Tische 1 Platz weiter)
A119: zur 2.Serie: 2 Tische 1 Platz weiter (opt. zur 3. Serie: 3 Tische 1 Platz weiter)
A128: zur 2.Serie: 3 Tische 1 Platz weiter (opt. zur 3. Serie: 4 Tische 1 Platz weiter)
A129: zur 2.Serie: 4 Tische 1 Platz weiter (opt. zur 3. Serie: 1 Tisch 1 Platz weiter)
A144: zur 2.Serie: 1 Tisch 1 Platz weiter (opt. zur 3. Serie: 2 Tische 1 Platz weiter)
A153: zur 2.Serie: 2 Tische 1 Platz weiter (opt. zur 3. Serie: 3 Tische 1 Platz weiter)
A162: zur 2.Serie: 3 Tische 1 Platz weiter (opt. zur 3. Serie: 4 Tische 1 Platz weiter)
A163: zur 2.Serie: 4 Tische 1 Platz weiter (opt. zur 3. Serie: 1 Tisch 1 Platz weiter)
A178: zur 2.Serie: 1 Tisch 1 Platz weiter (opt. zur 3. Serie: 2 Tische 1 Platz weiter)
A187: zur 2.Serie: 2 Tische 1 Platz weiter (opt. zur 3. Serie: 3 Tische 1 Platz weiter)
A196: zur 2.Serie: 3 Tische 1 Platz weiter (opt. zur 3. Serie: 4 Tische 1 Platz weiter)
A197: zur 2.Serie: 4 Tische 1 Platz weiter (opt. zur 3. Serie: 1 Tisch 1 Platz weiter)
A212: zur 2.Serie: 1 Tisch 1 Platz weiter (opt. zur 3. Serie: 2 Tische 1 Platz weiter)
A221: zur 2.Serie: 2 Tische 1 Platz weiter (opt. zur 3. Serie: 3 Tische 1 Platz weiter)
A230: zur 2.Serie: 3 Tische 1 Platz weiter (opt. zur 3. Serie: 4 Tische 1 Platz weiter)
A231: zur 2.Serie: 4 Tische 1 Platz weiter (opt. zur 3. Serie: 1 Tisch 1 Platz weiter)
A246: zur 2.Serie: 1 Tisch 1 Platz weiter (opt. zur 3. Serie: 2 Tische 1 Platz weiter)
A255: zur 2.Serie: 2 Tische 1 Platz weiter (opt. zur 3. Serie: 3 Tische 1 Platz weiter)
A264: zur 2.Serie: 3 Tische 1 Platz weiter (opt. zur 3. Serie: 4 Tische 1 Platz weiter)
A265: zur 2.Serie: 4 Tische 1 Platz weiter (opt. zur 3. Serie: 1 Tisch 1 Platz weiter)
A280: zur 2.Serie: 1 Tisch 1 Platz weiter (opt. zur 3. Serie: 2 Tische 1 Platz weiter)
A289: zur 2.Serie: 2 Tische 1 Platz weiter (opt. zur 3. Serie: 3 Tische 1 Platz weiter)
A298: zur 2.Serie: 3 Tische 1 Platz weiter (opt. zur 3. Serie: 4 Tische 1 Platz weiter)
A299: zur 2.Serie: 4 Tische 1 Platz weiter (opt. zur 3. Serie: 1 Tisch 1 Platz weiter)
A314: zur 2.Serie: 1 Tisch 1 Platz weiter (opt. zur 3. Serie: 2 Tische 1 Platz weiter)
A323: zur 2.Serie: 2 Tische 1 Platz weiter (opt. zur 3. Serie: 3 Tische 1 Platz weiter)
A332: zur 2.Serie: 3 Tische 1 Platz weiter (opt. zur 3. Serie: 4 Tische 1 Platz weiter)
A333: zur 2.Serie: 4 Tische 1 Platz weiter (opt. zur 3. Serie: 1 Tisch 1 Platz weiter)
A348: zur 2.Serie: 1 Tisch 1 Platz weiter (opt. zur 3. Serie: 2 Tische 1 Platz weiter)
A357: zur 2.Serie: 2 Tische 1 Platz weiter (opt. zur 3. Serie: 3 Tische 1 Platz weiter)
A366: zur 2.Serie: 3 Tische 1 Platz weiter (opt. zur 3. Serie: 4 Tische 1 Platz weiter)
A367: zur 2.Serie: 4 Tische 1 Platz weiter (opt. zur 3. Serie: 1 Tisch 1 Platz weiter)
A382: zur 2.Serie: 1 Tisch 1 Platz weiter (opt. zur 3. Serie: 2 Tische 1 Platz weiter)
A391: zur 2.Serie: 2 Tische 1 Platz weiter (opt. zur 3. Serie: 3 Tische 1 Platz weiter)
A400: zur 2.Serie: 3 Tische 1 Platz weiter (opt. zur 3. Serie: 4 Tische 1 Platz weiter)
A401: zur 2.Serie: 4 Tische 1 Platz weiter (opt. zur 3. Serie: 1 Tisch 1 Platz weiter)
A416: zur 2.Serie: 1 Tisch 1 Platz weiter (opt. zur 3. Serie: 2 Tische 1 Platz weiter)
A425: zur 2.Serie: 2 Tische 1 Platz weiter (opt. zur 3. Serie: 3 Tische 1 Platz weiter)
A434: zur 2.Serie: 3 Tische 1 Platz weiter (opt. zur 3. Serie: 4 Tische 1 Platz weiter)
A435: zur 2.Serie: 4 Tische 1 Platz weiter (opt. zur 3. Serie: 1 Tisch 1 Platz weiter)
A450: zur 2.Serie: 1 Tisch 1 Platz weiter (opt. zur 3. Serie: 2 Tische 1 Platz weiter)
A459: zur 2.Serie: 2 Tische 1 Platz weiter (opt. zur 3. Serie: 3 Tische 1 Platz weiter)
A468: zur 2.Serie: 3 Tische 1 Platz weiter (opt. zur 3. Serie: 4 Tische 1 Platz weiter)
A469: zur 2.Serie: 4 Tische 1 Platz weiter (opt. zur 3. Serie: 1 Tisch 1 Platz weiter)
A484: zur 2.Serie: 1 Tisch 1 Platz weiter (opt. zur 3. Serie: 2 Tische 1 Platz weiter)
A493: zur 2.Serie: 2 Tische 1 Platz weiter (opt. zur 3. Serie: 3 Tische 1 Platz weiter)
A502: zur 2.Serie: 3 Tische 1 Platz weiter (opt. zur 3. Serie: 4 Tische 1 Platz weiter)
A503: zur 2.Serie: 4 Tische 1 Platz weiter (opt. zur 3. Serie: 1 Tisch 1 Platz weiter)
A518: zur 2.Serie: 1 Tisch 1 Platz weiter (opt. zur 3. Serie: 2 Tische 1 Platz weiter)
A527: zur 2.Serie: 2 Tische 1 Platz weiter (opt. zur 3. Serie: 3 Tische 1 Platz weiter)
A536: zur 2.Serie: 3 Tische 1 Platz weiter (opt. zur 3. Serie: 4 Tische 1 Platz weiter)
A537: zur 2.Serie: 4 Tische 1 Platz weiter (opt. zur 3. Serie: 1 Tisch 1 Platz weiter)
